Cogmind - Beta 15 @@@ ROGUE MODE // 2025.09.07 @ 07:46:37 Player: Dosh Result: Escaped! Performance ------------- Evolutions (9) 4500 Regions Visited (27) 5400 Robots Destroyed (532) 2660 Value Destroyed (31433) 31433 Prototype IDs (127) 2540 Alien Tech Used (1) 200 Bonus (25411) 25411 TOTAL SCORE: 72144 Bonus ------- High Alert Combat Kills 1156 Follower Combat Kills 11586 Entered Garrisons 2200 Used RIF Installer 7500 Win 3000 Friendly Fire -31 Cogmind --------- Core Integrity 1502/1600 Matter 62/300 Energy 885/910 System Corruption 5% Temperature Cool (17) Movement Treading (152) Location To Epsilon Eridani Parts ------- > --- POWER (4) -------- Cooled Antimatter Reactor Cooled Antimatter Reactor Cooled Antimatter Reactor Quantum Reactor > --- PROPULSION (7) --- Armored Heavy Treads Biometal Heavy Treads Advanced Heavy Siege Treads Experimental Biometal Medium Treads > --- UTILITY (12) ----- Advanced Heat Sink Concept Antigrav Storage Unit Spectral Analyzer Heavy Armor Plating Concept Energy Mantle Concept Network Penetrator Relay Coupler [NC] (19) Relay Coupler [C] (33) Relay Coupler [Sentry] (11) Relay Coupler [Specialist] (34) > --- WEAPON (2) ------- Matter Neutralizer Advanced Remote Datajack > --- INVENTORY (25) --- Light Quantum Reactor Light Quantum Reactor Armored Heavy Treads Advanced Cryofiber Web Advanced Heat Sink Advanced Heat Sink Advanced Heat Sink Concept Chromion Battery (800) Experimental Core Analyzer Hardened Medium Armor Plating Relay Coupler [NC] (43) Relay Coupler [NC] (43) Relay Coupler [NC] (33) Relay Coupler [C] (32) Relay Coupler [C] (33) Long-range Tractor Beam Enhanced Quantum Rifle Enhanced Quantum Rifle HERF Cannon HERF Cannon Neutron Missile Launcher Advanced Remote Datajack Peak State ------------ > --- POWER ------------ Cooled Antimatter Reactor Cooled Antimatter Reactor Cooled Antimatter Reactor Quantum Reactor > --- PROPULSION ------- Armored Heavy Treads Biometal Heavy Treads Advanced Heavy Siege Treads Experimental Biometal Medium Treads > --- UTILITY ---------- Advanced Heat Sink Concept Antigrav Storage Unit Spectral Analyzer Heavy Armor Plating Concept Energy Mantle Concept Network Penetrator Relay Coupler [NC] Relay Coupler [C] Relay Coupler [Sentry] Relay Coupler [Specialist] System Purifier > --- WEAPON ----------- Matter Neutralizer Advanced Remote Datajack > --- INVENTORY -------- Light Quantum Reactor Light Quantum Reactor Armored Heavy Treads Advanced Cryofiber Web Advanced Heat Sink Advanced Heat Sink Advanced Heat Sink Concept Chromion Battery Experimental Core Analyzer Hardened Medium Armor Plating Relay Coupler [NC] Relay Coupler [NC] Relay Coupler [NC] Relay Coupler [C] Relay Coupler [C] Long-range Tractor Beam Enhanced Quantum Rifle Enhanced Quantum Rifle HERF Cannon HERF Cannon Neutron Missile Launcher Advanced Remote Datajack [Rating: 214] Favorites ----------- Power Quantum Reactor Engine Heavy Deuterium Engine Power Core Neutrino Core Reactor Quantum Reactor Propulsion Armored Heavy Treads Treads Armored Heavy Treads Leg Heavy Shield Leg Utility Relay Coupler [Sentry] Device Quantum Capacitor Storage Huge Storage Unit Processor Advanced Targeting Computer Hackware Relay Coupler [Sentry] Protection Layered Heavy Armor Plating Weapon Gatling Laser Energy Gun Gatling Laser Energy Cannon Enhanced Nova Cannon Ballistic Gun Autogun Launcher Mini Smartbomb Launcher Special Weapon Advanced Remote Datajack Impact Weapon Maul Slashing Weapon Great Axe Special Melee Weapon Datajack Build | -11 -10 -9 -9 -9 -8 -8 -8 -8 -7 -7 -6 -6 -5 -5 -5 -5 -4 -4 -3 -3 -2 -2 -2 -2 -2 -2 -1 ------- Run | Yrd Mat Mat Sto Gar Mat Gar Mat Gar Fac Gar Fac Gar Fac Gar Fac Gar Fac Gar Res Gar Res Gar Res Qua Frg Gar Acc Slots Evolved 18 | . . 2 . . 2 . . . 2 . 2 . 2 . . . 2 . 2 . 2 . . . . . 2 Power 3 | . . . . . . . . . . . 1 . . . . . . . 1 . . . . . . . 1 Propulsion 5 | . . 1 . . . . . . 1 . . . 1 . . . 1 . . . . . . . . . 1 Utility 10 | . . 1 . . 2 . . . 1 . 1 . 1 . . . 1 . 1 . 2 . . . . . . Weapon . | . . . . . . . . . . . . . . . . . . . . . . . . . . . . Parts Attached 351 | 6 5 22 16 8 14 1 13 2 15 6 5 23 19 15 17 8 11 14 5 13 9 15 13 6 24 24 22 Power 44 | 1 . 2 1 3 1 . 2 . 3 . 1 2 2 1 5 . . 2 1 2 . 2 3 . 1 3 6 Engine 10 | 1 . 1 1 1 1 . 2 . 2 . . . 1 . . . . . . . . . . . . . . Core 6 | . . 1 . 1 . . . . 1 . . 1 1 . 1 . . . . . . . . . . . . Reactor 28 | . . . . 1 . . . . . . 1 1 . 1 4 . . 2 1 2 . 2 3 . 1 3 6 Propulsion 62 | 2 1 9 5 2 7 . 4 . 3 1 2 6 1 2 3 . . . . . 1 . 3 . 6 . 4 Treads 57 | 2 1 9 5 2 7 . 4 . 3 1 2 6 1 2 3 . . . . . 1 . 3 . 1 . 4 Leg 5 | . . . . . . . . . . . . . . . . . . . . . . . . . 5 . . Wheel . | . . . . . . . . . . . . . . . . . . . . . . . . . . . . Hover . | . . . . . . . . . . . . . . . . . . . . . . . . . . . . Flight . | . . . . . . . . . . . . . . . . . . . . . . . . . . . . Utility 181 | 1 3 5 3 1 6 . 2 2 6 5 1 13 10 9 9 7 8 9 3 10 5 12 6 5 14 16 10 Device 44 | . . 1 1 . 1 . . . 3 . . 6 3 . 2 1 4 3 1 1 1 2 2 . 6 2 4 Storage 8 | 1 1 . 1 . . . . . . . 1 . . . 1 . . . . . . . . . 1 2 . Processor 13 | . 1 . . . 1 . . . . . . . 1 1 . . 1 . 1 1 2 . 1 . 2 . 1 Hackware 91 | . . . . . 2 . 1 1 1 2 . 7 5 8 6 5 3 6 . 7 1 10 2 5 5 11 3 Protection 25 | . 1 4 1 1 2 . 1 1 2 3 . . 1 . . 1 . . 1 1 1 . 1 . . 1 2 Artifact . | . . . . . . . . . . . . . . . . . . . . . . . . . . . . Weapon 64 | 2 1 6 7 2 . 1 5 . 3 . 1 2 6 3 . 1 3 3 1 1 3 1 1 1 3 5 2 Energy Gun 12 | 1 . 2 1 . . 1 3 . 1 . 1 . . . . . . . . . . . . . . 2 . Energy Cannon 19 | . . . 3 1 . . . . 1 . . 1 3 1 . . 2 3 . . 1 . . . 2 . 1 Ballistic Gun 7 | 1 1 3 1 . . . . . . . . . . . . . . . . . . . . . . 1 . Ballistic Cannon . | . . . . . . . . . . . . . . . . . . . . . . . . . . . . Launcher 3 | . . . . 1 . . . . . . . . . 1 . . 1 . . . . . . . . . . Special Weapon 20 | . . . 1 . . . 1 . 1 . . 1 3 1 . 1 . . 1 1 2 1 1 1 1 2 1 Impact Weapon 1 | . . 1 . . . . . . . . . . . . . . . . . . . . . . . . . Slashing Weapon 1 | . . . . . . . 1 . . . . . . . . . . . . . . . . . . . . Piercing Weapon . | . . . . . . . . . . . . . . . . . . . . . . . . . . . . Special Melee Weapon 1 | . . . 1 . . . . . . . . . . . . . . . . . . . . . . . . Unidentified Prototypes 21 | . . 1 2 . . . 1 . 2 . . . 2 . 6 . 5 . . . . . . . 2 . . Corrupted Parts 2 | . . . . . . . . . . . . . . . . . . . . . . . . . . 2 . System Corruption 12 | . . . . . . . . . . . . . . . . . . . . . . . . . . 12 . Parts Lost 63 | . . 3 1 3 3 1 3 . 1 . 2 11 1 2 1 1 1 1 . 3 . 2 1 . 15 4 3 Power 11 | . . 1 . 2 . . . . . . . 2 . . . . . . . 1 . 1 1 . 2 . 1 Propulsion 18 | . . 1 1 1 2 . 1 . 1 . . 4 1 2 . . . . . . . . . . 3 . 1 Utility 23 | . . 1 . . . . . . . . 1 4 . . 1 1 1 . . 2 . 1 . . 7 3 1 Weapon 11 | . . . . . 1 1 2 . . . 1 1 . . . . . 1 . . . . . . 3 1 . Highest Loss Streak 6 | . . 2 1 1 1 1 1 . 1 . 2 4 1 2 1 1 1 1 . 1 . 2 1 . 6 2 2 To Critical Strikes 3 | . . . . . . . . . . . . . . 1 . . . . . . . . . . 1 . 1 Average Backups 20 | . 4 13 14 17 19 18 19 19 19 19 19 22 23 24 24 23 22 24 24 24 24 23 23 23 19 8 20 Power 1 | . 1 1 1 . 1 2 1 1 1 2 1 . . 1 1 2 2 2 1 . . 1 . 1 . . 1 Propulsion 1 | . . 2 2 3 2 2 2 3 1 1 2 1 . . 1 1 1 1 1 1 . 1 1 1 1 1 1 Utility 12 | . . 3 4 6 7 8 10 10 10 10 9 16 18 18 18 17 17 17 19 18 18 17 17 16 11 5 11 Weapon 3 | . 1 4 5 5 5 4 3 4 4 5 4 3 3 2 2 2 2 3 3 3 3 2 3 3 3 . 4 Tool/Special . | . . . . . . . . . . . . . . . . . . . . . . . . . . . . Unused Backups 82 | . . 11 2 1 2 6 4 5 . . . 2 2 5 . 2 1 1 . . 1 9 . 2 10 2 14 Power . | . . . . . . . . . . . . . . . . . . . . . . . . . . . . Propulsion 8 | . . 2 2 . . . 2 . . . . . . . . . . . . . . . . . 1 1 . Utility 53 | . . 4 . . 1 6 1 4 . . . 2 . 4 . 2 1 1 . . 1 9 . . 7 1 9 Weapon 18 | . . 5 . 1 1 . 1 1 . . . . 2 . . . . . . . . . . 2 . . 5 Tool/Special 3 | . . . . . . . . . . . . . . 1 . . . . . . . . . . 2 . . Average Slot Usage (%) 86 | . 95 99 99 97 99 100 96 91 92 99 99 94 81 75 75 75 72 74 79 79 81 80 80 77 70 68 79 Engine 2 | . 14 6 11 2 3 . 4 9 6 7 6 2 3 1 . . . . . . . . . . . . . Core 1 | . . 4 . 7 . . . . . . . 1 5 5 6 . . . . . . . . . . . . Reactor 6 | . . . . 1 5 9 4 . . . 6 7 1 3 4 11 10 10 14 14 13 13 13 13 10 8 15 Treads 19 | . 28 32 32 33 26 27 26 27 29 30 26 22 17 17 17 17 14 15 14 14 12 13 12 13 1 . 9 Device 11 | . . 5 10 11 8 9 8 9 11 7 12 12 13 6 10 10 11 20 19 15 13 19 16 12 10 5 11 Storage 6 | . 14 11 11 11 9 9 9 9 7 7 6 6 5 5 5 5 5 5 4 4 4 4 4 4 3 4 4 Processor 4 | . 6 . . . 2 9 9 9 7 7 6 4 . . . . 1 . . 3 12 8 10 8 6 . . Hackware 11 | . . . . . 14 9 8 1 2 9 6 12 19 15 11 11 12 9 13 16 16 12 13 12 19 29 24 Protection 5 | . 2 16 12 11 9 9 6 8 7 12 13 7 . 4 4 5 5 2 3 . . . . 3 . 1 3 Energy Gun 5 | . 10 9 14 1 3 7 17 17 14 11 12 6 . . . . . . . . . . . . . 2 3 Energy Cannon 4 | . . . 5 17 14 10 . . . . . 3 4 4 5 4 4 8 7 4 4 4 4 4 3 . 1 Ballistic Gun 1 | . 17 12 . . . . . . . . . . . . . . . . . . . . . . . 1 . Special Weapon 2 | . . . 1 . . . . . . 2 . 2 5 4 4 5 5 1 1 3 3 3 4 4 2 2 2 Peak Build Rating 214 | 6 8 21 24 29 38 39 41 39 50 53 60 96 112 118 134 135 162 156 162 166 182 183 185 190 207 199 214 Average Rating 98 | 4 6 16 20 23 33 38 37 38 47 51 58 68 100 110 120 133 149 152 159 161 177 177 178 181 171 175 200 On Entrance 94 | . 6 8 20 23 29 38 39 38 39 50 51 59 94 112 117 133 134 155 149 162 166 175 178 178 184 119 196 Naked Turns 45 | . . . . . . . . . . . . . . . . . . . . . . . . . 45 . . Heaviest Build 199 | 14 34 44 65 68 74 74 73 73 78 76 129 131 146 157 159 159 170 182 187 179 166 179 199 194 173 105 156 Greatest Support 255 | 40 40 60 69 69 65 65 66 66 88 94 94 120 147 147 230 210 240 240 240 240 240 210 210 200 200 158 255 Greatest Overweight (x) 2 | . . . 1 1 1 1 1 1 1 . 1 1 . 1 1 . 1 . . . . . . . 2 . 1 Average Overweight (x) . | . . . . . 1 1 . . . . . . . . . . . . . . . . . . . . . Largest Inventory Capacity 25 | 8 15 15 20 20 20 20 20 20 20 20 25 25 25 25 25 25 25 25 25 25 25 25 25 25 25 25 25 Average Capacity 22 | 7 14 15 15 20 20 20 20 20 20 20 20 25 25 25 25 25 25 25 25 25 25 25 25 25 24 16 25 Most Carried 25 | 1 11 15 15 20 20 20 20 20 20 20 20 25 25 25 25 25 25 25 25 25 25 25 25 25 25 17 25 Average Carried 20 | . 4 13 14 17 19 18 19 19 19 19 19 22 24 24 24 24 22 24 24 24 24 24 24 24 21 9 22 Final Capacity 25 | 8 15 15 20 20 20 20 20 20 20 20 25 25 25 25 25 25 25 25 25 25 25 25 25 25 25 25 25 Final Carried 25 | 1 11 15 15 20 18 20 20 20 20 20 18 24 24 24 25 25 23 25 25 25 25 25 25 25 12 17 23 Class Distribution -------------------- 62% | Botlord-Mutant 18% | Mutant 18% | Bothacker-Mutant Dominant Class ---------------- Mutant | -10/Materials Mutant | -9/Materials Mutant | -9/Storage Mutant | -9/Garrison Bothacker-Mutant | -8/Materials Bothacker-Mutant | -8/Garrison Bothacker-Mutant | -8/Materials Botlord-Mutant | -8/Garrison Botlord-Mutant | -7/Factory Botlord-Mutant | -7/Garrison Botlord-Mutant | -6/Factory Botlord-Mutant | -6/Garrison Botlord-Mutant | -5/Factory Botlord-Mutant | -5/Garrison Botlord-Mutant | -5/Factory Botlord-Mutant | -5/Garrison Botlord-Mutant | -4/Factory Botlord-Mutant | -4/Garrison Mutant | -3/Research Botlord-Mutant | -3/Garrison Botlord-Mutant | -2/Research Botlord-Mutant | -2/Garrison Botlord-Mutant | -2/Research Botlord-Mutant | -2/Quarantine Botlord-Mutant | -2/Protoforge Botlord-Mutant | -2/Garrison Botlord-Mutant | -1/Access Resources | -11 -10 -9 -9 -9 -8 -8 -8 -8 -7 -7 -6 -6 -5 -5 -5 -5 -4 -4 -3 -3 -2 -2 -2 -2 -2 -2 -1 ----------- Run | Yrd Mat Mat Sto Gar Mat Gar Mat Gar Fac Gar Fac Gar Fac Gar Fac Gar Fac Gar Res Gar Res Gar Res Qua Frg Gar Acc Matter Collected 12328 | 199 319 936 244 392 160 20 353 190 230 202 102 654 426 653 617 478 666 477 180 609 316 530 411 388 1278 846 452 Remotely . | . . . . . . . . . . . . . . . . . . . . . . . . . . . . Salvage Created 23516 | . 511 1468 1504 880 949 674 1100 958 432 669 643 1173 832 445 1182 738 777 883 853 1349 866 899 867 1192 980 191 501 Parts 1193 | . 30 112 80 52 59 29 66 54 20 37 13 34 27 22 50 37 34 42 42 59 55 43 35 82 36 12 31 Haulers Intercepted 21 | . . 5 5 . 3 . 5 . 2 . . . 1 . . . . . . . . . . . . . . Recyclers Shooed 9 | . . . 2 . 1 . . . . . 1 . 1 . 1 . . . . . 1 . 1 . . . 1 Parts Field Recycled . | . . . . . . . . . . . . . . . . . . . . . . . . . . . . Retrieved Matter . | . . . . . . . . . . . . . . . . . . . . . . . . . . . . Parts Self-Destructed . | . . . . . . . . . . . . . . . . . . . . . . . . . . . . Prevented . | . . . . . . . . . . . . . . . . . . . . . . . . . . . . Kills | -11 -10 -9 -9 -9 -8 -8 -8 -8 -7 -7 -6 -6 -5 -5 -5 -5 -4 -4 -3 -3 -2 -2 -2 -2 -2 -2 -1 ------- Run | Yrd Mat Mat Sto Gar Mat Gar Mat Gar Fac Gar Fac Gar Fac Gar Fac Gar Fac Gar Res Gar Res Gar Res Qua Frg Gar Acc Combat Hostiles Destroyed 446 | . 14 30 26 27 15 14 19 32 7 19 9 26 10 14 19 17 21 15 13 24 14 13 7 16 14 3 8 Melee 1 | . . . . . . . . . . . . 1 . . . . . . . . . . . . . . . Guns 179 | . 14 30 17 1 5 7 19 31 6 19 5 19 . . . . . . . . . . . . . 2 4 Cannons 162 | . . . 1 15 8 6 . . . . . 1 7 7 12 7 11 13 10 11 5 12 7 15 10 1 3 AOE 66 | . . . 7 11 1 . . . . . . 1 . 7 3 9 10 2 . 8 7 . . . . . . Classes Destroyed 25 | . 4 7 . 1 1 1 1 1 . . . . . . . 1 1 1 . 1 1 1 1 . 2 . . Worker 9 | . . 2 . . 2 . 1 . . . . . . . 1 . . . . . . . 1 . 1 . 1 Builder 8 | . . 1 1 . 1 . . . 1 . . . . . 2 . . . . . . . . . 2 . . Tunneler 3 | . . 2 . . 1 . . . . . . . . . . . . . . . . . . . . . . Hauler 22 | . . 5 5 . 3 . 5 . 2 . . . 1 . . . 1 . . . . . . . . . . Recycler 8 | . 1 . 1 . . . . . . . 1 . 1 . 1 . . . 1 . 1 . 1 . . . . Mechanic 1 | . . 1 . . . . . . . . . . . . . . . . . . . . . . . . . Operator 7 | . . 3 1 . . . . . . . . . . . 2 . 1 . . . . . . . . . . Drone 2 | . . . . . . . . . . . . . . . . . . . . . . . . . 2 . . Watcher 23 | . 2 5 2 . 3 . 5 . . . 1 . . . . . . . . . . . 2 . 1 . 2 Swarmer 118 | . 6 16 4 8 4 . 3 13 . 10 1 4 . 6 6 5 6 1 5 11 7 1 . . . . 1 Cutter 5 | . . . . . . . . . . . . . . . . 2 . 3 . . . . . . . . . Saboteur 1 | . . . . . . . . . . . . . . . . . 1 . . . . . . . . . . Grunt 112 | . 8 5 13 8 5 7 5 8 4 4 2 15 3 4 3 6 . 4 . 3 . . 2 2 . 1 . Brawler 8 | . . . . . . . 1 . . . 2 . 1 . 2 . . . . 2 . . . . . . . Duelist 5 | . . . . 2 . . . 1 . . 1 . . . . . . . . 1 . . . . . . . Sentry 58 | . . 9 9 9 5 3 8 3 1 2 3 1 . . . . . 5 . . . . . . . . . Demolisher 1 | . . . . . . . . . . . . . . . . . . 1 . . . . . . . . . Specialist 15 | . . . . . . . . 1 . 1 . . . . 2 . 3 . . . . 4 2 . 2 . . Hunter 34 | . . . . . 1 1 2 . . 1 . . 1 1 2 1 5 1 4 5 2 2 1 4 . . . Programmer 77 | . . . . . . 3 . 6 2 2 1 7 5 3 4 5 6 . 4 . 4 5 1 10 . 2 7 Heavy 1 | . . . . . . . . . . . . . . . . . . . . . . . 1 . . . . Behemoth 1 | . . . . . . . . . . . . . . . . . . . . . 1 . . . . . . Hotshot 4 | . . . . . . . . . . . . . . . . . . . . . . . . . 4 . . Decapitator 1 | . . . . . . . . . . . . . . . . . . . . . . . . . 1 . . Immortal 2 | . . . . . . . . . . . . . . . . . . . . . . . . . 2 . . Striker 1 | . . . . . . . . . . . . . . . . . . . . . . 1 . . . . . Executioner 2 | . . . . . . . . . . . . . . . . . . . . 2 . . . . . . . V-Series 3 | . . . . . . . . . . . . . . . . . . . . . . . . . 3 . . Best Kill Streak 11 | . 9 5 7 10 4 3 3 7 4 5 3 4 3 9 5 11 11 3 2 11 7 5 5 3 4 1 3 Combat Bots Only 11 | . 8 5 6 10 3 3 3 7 3 5 3 4 2 9 4 11 11 3 2 11 7 5 3 3 4 1 3 Max Kills in Single Turn 5 | . 1 2 3 4 2 1 2 2 1 2 1 2 1 3 3 4 3 2 1 3 5 1 1 1 1 1 1 Gunslinging 1 | . . 1 . . . . . 1 . 1 . . . . . . . . . . . . . . . . . Exploded 5 | . . . 3 4 1 . . . . . . 1 . 3 2 3 3 2 . 3 5 . . . . . . Melee 1 | . . . . . . . . . . . . 1 . . . . . . . . . . . . . . . Uniques/NPCs Destroyed . | . . . . . . . . . . . . . . . . . . . . . . . . . . . . Combat | -11 -10 -9 -9 -9 -8 -8 -8 -8 -7 -7 -6 -6 -5 -5 -5 -5 -4 -4 -3 -3 -2 -2 -2 -2 -2 -2 -1 -------- Run | Yrd Mat Mat Sto Gar Mat Gar Mat Gar Fac Gar Fac Gar Fac Gar Fac Gar Fac Gar Res Gar Res Gar Res Qua Frg Gar Acc Hostile Shots Fired 2661 | . 64 124 67 95 83 73 55 161 42 95 69 226 45 88 55 62 139 86 48 99 35 199 56 59 228 136 172 Missed 776 | . 20 36 15 23 26 12 17 38 12 32 21 69 19 28 20 22 47 13 14 33 14 67 13 10 50 47 58 Deflected 6 | . . . . . . . . . . . . . . . . . . . . . . . . . 6 . . Hits 1885 | . 44 88 52 72 57 61 38 123 30 63 48 157 26 60 35 40 92 73 34 66 21 132 43 49 178 89 114 Melee 59 | . . . . 5 . . . . . . . . . . 1 1 . 3 . 6 . . . . 43 . . Projectile 1826 | . 44 88 52 67 57 61 38 123 30 63 48 157 26 60 34 39 92 70 34 60 21 132 43 49 135 89 114 AOE 36 | . . . . . . . . . . . . . 3 . 5 1 . 6 . 4 . . 1 . 15 . 1 Critical Strikes 96 | . 2 3 . . . 7 2 6 1 2 . 4 1 1 1 3 5 3 1 4 . . 2 . 32 7 9 Part Disruptions 5 | . . . . . . . . 1 . . . . . . 1 . 2 . . . . . . . 1 . . Damage Taken 29144 | . 482 862 613 1110 788 537 583 1146 525 601 569 1714 701 821 1184 453 1314 963 323 1009 497 1217 1094 656 5956 2005 1421 Core 2706 | . 170 88 59 111 98 70 38 118 65 46 11 112 . 22 138 17 118 102 28 46 . 77 47 42 686 299 98 Absorbed by Shields 11471 | . . 67 134 . . 398 . 687 . 234 . 617 149 437 409 446 533 895 337 825 . 358 642 517 2077 346 1363 Reduced by Siege Mode 501 | . . . . . . . . . . . . . . . 6 . . . 9 42 . 146 64 13 183 . 38 Regen/Repaired (Parts) 2935 | . . 110 . . 62 . 172 447 . . . . . 98 714 21 . . 343 96 . . 582 . 227 . 63 Core Remaining (%) 66 | 100 32 . . 35 . . . 41 . 84 . 85 . . . 82 . 80 . 94 . . . . . 1 93 Volleys Fired 2073 | . 50 99 68 71 63 37 48 67 33 35 33 129 105 71 125 84 88 82 66 103 43 93 67 69 207 72 65 Largest 2 | . 2 2 2 2 2 2 2 2 2 2 2 2 1 1 1 1 1 2 1 2 2 1 1 1 2 2 2 Hottest 300 | . 70 100 150 150 150 155 160 160 160 160 160 160 90 105 105 81 113 240 120 201 208 120 120 120 300 130 170 Shots Fired 2677 | . 100 198 128 120 116 72 96 112 49 64 51 181 105 72 127 87 88 84 67 104 44 93 68 72 213 80 86 Gun 972 | . 100 198 112 4 28 25 95 105 33 58 49 94 6 . . . . . . . . . . . . 30 35 Cannon 1252 | . . . 16 104 88 47 . . 15 . . 49 72 36 91 60 66 76 61 81 29 60 49 50 177 3 22 Launcher 37 | . . . . 12 . . . . . . . . . 4 2 5 6 1 . 3 2 . 1 . 1 . . Special 416 | . . . . . . . 1 7 1 6 2 38 27 32 34 22 16 7 6 20 13 33 18 22 35 47 29 Kinetic 251 | . 68 172 . . . . . . . . . . . . . . . . . . . . . . . 11 . Thermal 1672 | . 32 . 57 105 88 72 95 105 48 58 49 143 76 32 68 52 49 69 44 65 22 56 20 40 151 19 57 Explosive 37 | . . . . 12 . . . . . . . . . 4 2 5 6 1 . 3 2 . 1 . 1 . . Electromagnetic 301 | . . 26 71 3 28 . . . . . . . 2 4 23 8 17 7 17 16 7 4 29 10 26 3 . Robot Hit Streak 29 | . 18 12 11 17 20 15 14 19 22 13 29 23 12 15 11 8 12 10 9 11 10 25 14 15 23 10 14 Robot Miss Streak 8 | . 4 5 8 2 5 4 4 4 2 4 4 4 2 1 3 4 4 3 4 2 1 2 2 2 5 3 2 Penetration Max 3 | . . . . . . . . . . . . . . . . . . . . . . . . . 3 . . Secondary Targets 26 | . 5 5 1 . . . 1 6 1 4 . 2 . . . . . . . . . . . . . . 1 Max Gunslinging Chain 1 | . 1 1 1 . . . 1 1 1 1 . 1 . . . . . . . . . . . . . . 1 Capacitor 909 | . . . . . . . . . . . . 17 78 36 91 60 66 68 61 79 27 60 49 50 167 . . Shots Hit Robots 1803 | . 67 128 88 66 63 45 81 100 32 55 47 141 65 47 80 51 43 53 36 79 30 76 43 52 124 48 63 Core Hits 946 | . 28 66 75 35 37 29 70 68 30 50 41 74 16 21 25 31 38 29 13 40 22 17 13 22 37 4 15 Critical Kills 11 | . . 1 1 . 1 1 . . . . . . 1 . 2 . . . . 1 . . . . 2 . 1 Critical Parts Destroyed 1 | . . . . . . . . . . . . . . . . . . . . . . . . . 1 . . Critical Strikes 20 | . 4 1 1 . 1 1 . . . . . . 2 . 2 . . . . 1 . . . . 6 . 1 Burn 4 | . 4 . . . . . . . . . . . . . . . . . . . . . . . . . . Meltdown 9 | . . . 1 . 1 1 . . . . . . 1 . 2 . . . . 1 . . . . 1 . 1 Destroy 6 | . . 1 . . . . . . . . . . . . . . . . . . . . . . 5 . . Corrupt 1 | . . . . . . . . . . . . . 1 . . . . . . . . . . . . . . Melee Attacks 8 | . . 1 . . . . 2 2 . 1 . 2 . . . . . . . . . . . . . . . Impact 1 | . . 1 . . . . . . . . . . . . . . . . . . . . . . . . . Slashing 7 | . . . . . . . 2 2 . 1 . 2 . . . . . . . . . . . . . . . Piercing . | . . . . . . . . . . . . . . . . . . . . . . . . . . . . Sneak Attacks . | . . . . . . . . . . . . . . . . . . . . . . . . . . . . Combat Hostiles . | . . . . . . . . . . . . . . . . . . . . . . . . . . . . Follow-up Attacks . | . . . . . . . . . . . . . . . . . . . . . . . . . . . . Damage Inflicted 55926 | . 839 2095 1787 2305 1719 1237 1778 2433 905 1145 1166 3237 1684 1689 2673 2314 3776 2418 1904 3524 1662 2130 1539 1620 5809 704 1834 Guns 16717 | . 826 2070 1366 78 565 547 1753 2433 889 1145 1166 2140 178 . . . . . . . . . . . . 598 963 Cannons 30141 | . . . 106 1333 966 690 . . . . . 1073 1481 899 2170 1307 1103 2128 1681 2579 925 2130 1424 1620 5715 75 736 Explosions 8375 | . . . 306 894 143 . . . . . . . . 757 466 1007 2645 264 223 889 720 . 61 . . . . Melee . | . . . . . . . . . . . . . . . . . . . . . . . . . . . . Ramming 693 | . 13 25 9 . 45 . 25 . 16 . . 24 25 33 37 . 28 26 . 56 17 . 54 . 94 31 135 Kinetic 2340 | . 548 1664 . . . . . . . . . . . . . . . . . . . . . . . 128 . Thermal 38869 | . 278 . 797 1352 1109 1237 1753 2433 889 1145 1166 3213 1579 787 1390 1184 851 1981 1436 2104 687 1975 610 1345 5399 470 1699 Explosive 7536 | . . . . 894 . . . . . . . . . 757 466 1007 2478 264 . 889 720 . 61 . . . . Electromagnetic 6488 | . . 406 981 59 565 . . . . . . . 80 112 780 123 419 147 468 475 238 155 814 275 316 75 . Impact . | . . . . . . . . . . . . . . . . . . . . . . . . . . . . Slashing . | . . . . . . . . . . . . . . . . . . . . . . . . . . . . Piercing . | . . . . . . . . . . . . . . . . . . . . . . . . . . . . Highest Corruption 83 | . . . 1 2 . 3 3 8 3 3 1 5 6 4 11 13 10 10 2 2 1 2 6 9 62 83 16 Average Corruption 8 | . . . 1 1 . 2 3 5 1 3 1 3 1 3 6 11 5 10 1 2 1 1 2 7 18 77 6 Corruption Purged 18 | . . . . . . . . . . . . . 5 . . . . . . . 1 . . . . . 12 Corruption Blocked . | . . . . . . . . . . . . . . . . . . . . . . . . . . . . Effects 745 | . . . 9 19 . 4 51 32 4 21 . 36 9 32 54 39 28 65 14 23 . 3 23 36 133 76 34 Message Errors 178 | . . . 2 7 . 2 11 5 1 5 . 12 2 10 9 9 8 12 2 6 . 1 6 8 34 17 9 Matter Fused 184 | . . . 1 3 . . 18 9 3 4 . 5 2 6 8 8 7 15 5 10 . 1 5 10 38 14 12 Heat Flow Errors 86 | . . . . 2 . 1 6 3 . 6 . 5 1 4 12 6 4 3 2 5 . . 3 4 7 7 5 Energy Discharges 72 | . . . 2 2 . . 5 4 . 3 . . 1 4 7 4 4 9 . . . . 4 5 9 5 4 Parts Rejected 5 | . . . . . . . 1 . . . . . . . . . . . . 1 . . 1 . 1 . 1 Parts Fused 9 | . . . . . . . . . . . . 1 . 1 . . 1 3 . . . . . . 1 2 . Data Loss (minor) 86 | . . . . 2 . . 4 6 . . . 2 2 3 12 5 3 17 1 . . . 1 2 20 6 . Data Loss (major) 35 | . . . . 1 . . 2 1 . 2 . 3 . 2 1 . 1 2 3 1 . . 2 3 6 4 1 Misfires 36 | . . . 3 1 . 1 3 2 . . . 4 . 1 2 3 . . 1 . . . 1 3 8 3 . Alerts 23 | . . . 1 1 . . 1 2 . 1 . 1 1 1 2 4 . 2 . . . 1 . 1 1 2 1 Misdirections 13 | . . . . . . . . . . . . . . . 1 . . . . . . . . . 3 9 . Weapon Failures 18 | . . . . . . . . . . . . 3 . . . . . 2 . . . . . . 5 7 1 Overload Shots 4 | . . . . . . . . . . . . 1 . 1 1 . . 1 . . . . . . . . . Overflow Damage 1604 | . . . 29 61 14 . . . . . . 18 131 76 169 91 231 36 89 146 135 91 36 70 140 . 41 Projectiles 957 | . . . . 38 5 . . . . . . 18 131 14 140 74 26 33 48 119 11 91 24 70 95 . 20 Explosions 581 | . . . 29 23 9 . . . . . . . . 62 29 17 205 3 41 27 124 . 12 . . . . Melee 66 | . . . . . . . . . . . . . . . . . . . . . . . . . 45 . 21 Knockbacks 5 | . . . . . . . . . 1 . . . 1 . . . . . . 1 . . . . . . 2 Impact 5 | . . . . . . . . . 1 . . . 1 . . . . . . 1 . . . . . . 2 Kinetic . | . . . . . . . . . . . . . . . . . . . . . . . . . . . . Secondary . | . . . . . . . . . . . . . . . . . . . . . . . . . . . . Self-Inflicted Damage 478 | . . . 116 51 56 . . . . . . . . 32 . . 123 56 . . . . . . 44 . . Shots 18 | . . . 4 3 1 . . . . . . . . 2 . . 6 1 . . . . . . 1 . . Rammed 55 | . 4 3 1 . 8 . 2 . 1 . . 2 5 5 5 . 3 2 . 2 3 . 2 . 1 . 6 Targets Rammed 82 | . 5 6 2 . 9 . 2 . 1 . . 3 5 5 5 . 3 2 . 2 3 . 4 . 6 9 10 Kicked 16 | . . . . . . . . . . . . . . . . . . . . . . . . . 5 9 2 Crushed 11 | . 1 3 1 . 1 . . . . . . 1 . . . . . . . . . . 2 . . . 2 Highest Temperature 542 | . 141 135 402 347 351 246 402 169 116 413 5 431 160 251 413 223 378 400 322 542 90 289 361 220 408 249 366 Average Temperature 93 | . 42 32 101 116 73 85 78 39 44 116 5 121 62 78 114 91 100 135 114 201 45 139 107 75 112 84 154 Received Heat Transfer 4398 | . 264 247 176 303 225 256 198 303 144 82 99 408 70 93 63 24 102 130 12 109 18 21 46 4 574 397 30 Effects 32 | . . . 4 7 2 . 2 . . 6 . 1 . . 3 . . 1 . 1 . . . . 2 . 3 Shutdowns 4 | . . . 1 . . . 1 . . 1 . . . . 1 . . . . . . . . . . . . Energy Bleed 8 | . . . . . . . 1 . . 1 . . . . 2 . . 1 . 1 . . . . . . 2 Interference 14 | . . . 2 6 2 . . . . 3 . . . . . . . . . . . . . . 1 . . Matter Decay 2 | . . . . 1 . . . . . . . 1 . . . . . . . . . . . . . . . Short Circuit 1 | . . . . . . . . . . . . . . . . . . . . . . . . . . . 1 Damage (minor) 3 | . . . 1 . . . . . . 1 . . . . . . . . . . . . . . 1 . . Siege Activations 15 | . . . . . . . . . . . . . . . 1 . . . 2 3 . 2 1 3 2 . 1 Total Turns 768 | . . . . . . . . . . . . . . . 29 . . . 526 45 . 52 30 13 51 . 22 Longest Duration 461 | . . . . . . . . . . . . . . . 29 . . . 461 28 . 48 30 8 35 . 22 Martial Activations . | . . . . . . . . . . . . . . . . . . . . . . . . . . . . Shielding Activations 4 | . . . . . . . . . . . . . . . . . . . . . . . . . 4 . . Total Turns 75 | . . . . . . . . . . . . . . . . . . . . . . . . . 75 . . Longest Duration 27 | . . . . . . . . . . . . . . . . . . . . . . . . . 27 . . Robots Disrupted . | . . . . . . . . . . . . . . . . . . . . . . . . . . . . Combat Hostiles . | . . . . . . . . . . . . . . . . . . . . . . . . . . . . Robots Corrupted 18 | . . . . . . . . . . . . . 1 . 2 1 . . 3 3 2 1 . 1 3 . 1 Combat Hostiles 16 | . . . . . . . . . . . . . 1 . 2 1 . . 3 3 2 1 . 1 2 . . Parts Fried 37 | . . 3 4 . 1 . . . . . . . 1 1 5 1 1 2 4 5 2 . 5 . 2 . . Impact Corruptions 2 | . . . . . . . . . . . . . . . . . . . . . . . . . 1 . 1 Robots Melted 23 | . . . 1 . 1 1 . 1 1 . 4 5 2 . 3 . . . . 2 . . . . 1 . 1 Combat Hostiles 21 | . . . 1 . 1 1 . 1 1 . 4 4 2 . 2 . . . . 2 . . . . 1 . 1 Parts Melted 138 | . 3 . 2 2 8 8 11 14 3 4 10 16 9 3 9 4 7 1 1 3 . 1 5 2 3 2 7 Heat Transferred 50528 | . 1110 . 1073 1907 1556 2112 3925 5034 1900 2548 2575 5825 2300 1050 1925 1525 911 1808 1175 1813 518 1591 481 999 2813 481 1573 Parts Sabotaged . | . . . . . . . . . . . . . . . . . . . . . . . . . . . . Parts Stolen . | . . . . . . . . . . . . . . . . . . . . . . . . . . . . Parts Stripped . | . . . . . . . . . . . . . . . . . . . . . . . . . . . . Power Chain Reactions 8 | . . . 5 . 1 . . . . . . . . . . . 1 . 1 . . . . . . . . Alert | -11 -10 -9 -9 -9 -8 -8 -8 -8 -7 -7 -6 -6 -5 -5 -5 -5 -4 -4 -3 -3 -2 -2 -2 -2 -2 -2 -1 ------- Run | Yrd Mat Mat Sto Gar Mat Gar Mat Gar Fac Gar Fac Gar Fac Gar Fac Gar Fac Gar Res Gar Res Gar Res Qua Frg Gar Acc Maximum Alert Level 3 | . . 1 1 3 2 2 1 3 2 1 1 3 1 3 2 3 2 3 2 2 1 2 1 . 1 1 . Low Security (%) 55 | 100 100 86 71 17 82 17 78 22 79 30 87 33 22 5 40 18 21 7 39 25 71 28 84 100 87 98 100 Level 1 23 | . . 13 28 1 15 56 21 8 . 69 12 33 77 3 46 . 73 22 39 4 28 55 15 . 12 1 . Level 2 13 | . . . . 38 2 26 . 29 20 . . 33 . 35 12 47 5 37 21 69 . 16 . . . . . Level 3 7 | . . . . 42 . . . 38 . . . . . 55 . 32 . 32 . . . . . . . . . Level 4 . | . . . . . . . . . . . . . . . . . . . . . . . . . . . . Level 5 . | . . . . . . . . . . . . . . . . . . . . . . . . . . . . High Security . | . . . . . . . . . . . . . . . . . . . . . . . . . . . . Max Security . | . . . . . . . . . . . . . . . . . . . . . . . . . . . . Peak Influence 1002 | . 186 232 255 1002 488 494 292 984 516 399 239 755 398 934 490 817 428 926 551 675 379 432 302 54 219 200 57 Initial 520 | . . . 81 48 488 61 240 . 516 29 209 . 396 11 490 119 428 182 520 135 379 . 243 10 . 148 32 Average 240 | . 62 81 129 592 150 324 83 551 120 256 85 293 262 669 232 551 268 569 288 419 126 250 92 15 125 44 8 Influence Increases 17504 | . 432 955 874 1004 614 443 687 1004 219 450 236 1005 680 1093 869 778 635 894 341 770 352 681 412 380 1185 287 224 Destroy 0b10 Robot/C 8417 | . 280 600 520 540 300 280 380 640 140 345 150 450 315 510 360 255 315 393 180 384 168 228 108 192 216 72 96 Destroy 0b10 Robot/NC 397 | . 15 95 50 . 50 . 55 . 15 . 8 4 16 . 28 . 4 . 3 . 3 . 21 . 21 . 9 Destroy Leader 1348 | . 54 190 144 30 92 10 160 30 54 16 34 24 66 40 72 24 48 16 36 36 36 18 28 24 20 12 34 Allied During Kill 1634 | . . . . . . . . 1 . 21 17 29 104 250 167 132 53 105 35 104 79 228 157 21 89 19 23 Successful Hack 493 | . 22 23 35 26 31 18 30 52 5 6 15 . 45 6 17 5 3 . 8 10 25 5 15 43 . 23 25 Select Force Hacks 83 | . 60 . . . . . . . . . . . . . 23 . . . . . . . . . . . . Disable Machine 651 | . . 30 75 15 15 15 . . . . . . 36 . 72 12 48 9 9 9 27 . 27 63 180 . 9 Anti-Garrison Action 2302 | . . . . 300 . 100 . 250 . 38 . 452 . 227 . 266 . 219 . 150 . 180 . . . 120 . Destroy Structure 1600 | . 1 2 35 63 51 5 2 1 5 . . 22 62 48 82 84 152 62 70 50 14 22 56 28 650 23 10 Partial Spotted 21 | . . . . . . . . . . . . . . . . . 12 . . 9 . . . . . . . Lose Combat Pursuer 558 | . . 15 15 30 75 15 60 30 . 24 12 24 36 12 48 . . 90 . 18 . . . 9 9 18 18 Influence Decreases 17504 | . 432 761 994 76 1522 43 1181 20 1161 93 635 250 1418 176 1633 131 1191 229 1086 276 1027 249 825 399 987 431 278 Entered New Map 3957 | . . . 113 26 514 33 254 . 468 13 190 . 359 6 444 51 389 79 406 46 296 . 189 9 . 50 22 Time Decay 7601 | . 296 523 571 . 668 . 671 . 383 . 370 . 589 . 548 . 464 . 580 . 441 . 379 328 587 . 203 Lost Part 599 | . . 30 10 30 30 10 30 . 10 . 19 110 10 20 10 10 10 10 . 30 . 20 10 . 150 40 . Lost Ally 3038 | . . . . 20 10 . . 20 . 80 56 140 160 150 370 70 200 140 100 200 140 229 247 62 250 341 53 Purge Threat 2309 | . 136 208 300 . 300 . 226 . 300 . . . 300 . 261 . 128 . . . 150 . . . . . . Squads Dispatched 102 | . 2 3 5 . 1 . 4 . 6 . 5 . 9 . 15 . 6 . 6 . 8 . 6 7 10 . 9 Investigation 17 | . 2 . . . 1 . . . 3 . 3 . 3 . 4 . . . . . . . . . . . 1 Extermination 33 | . . . . . . . . . 1 . 2 . 4 . 2 . 2 . 3 . 4 . 2 3 6 . 4 Reinforcement 30 | . . 3 1 . . . 1 . 1 . . . 2 . 9 . . . . . 1 . 3 4 1 . 4 Assault . | . . . . . . . . . . . . . . . . . . . . . . . . . . . . Garrison 22 | . . . 4 . . . 3 . 1 . . . . . . . 4 . 3 . 3 . 1 . 3 . . Intercept . | . . . . . . . . . . . . . . . . . . . . . . . . . . . . Searches Triggered . | . . . . . . . . . . . . . . . . . . . . . . . . . . . . Construction Impeded 4 | . . . . . . . . . . . . . 1 . 3 . . . . . . . . . . . . Haulers Reinforced 3 | . . . . . . . . . 1 . . . 1 . . . . . . . . . 1 . . . . Active Scanning Responses . | . . . . . . . . . . . . . . . . . . . . . . . . . . . . Cargo Convoy Interrupts 2 | . . . . . . . . . . . . . . . 1 . 1 . . . . . . . . . . Alert ID Control Effect 210 | . . . . . . . . . . . . . . 3 35 9 14 10 . 14 8 13 24 9 60 4 7 Stealth | -11 -10 -9 -9 -9 -8 -8 -8 -8 -7 -7 -6 -6 -5 -5 -5 -5 -4 -4 -3 -3 -2 -2 -2 -2 -2 -2 -1 --------- Run | Yrd Mat Mat Sto Gar Mat Gar Mat Gar Fac Gar Fac Gar Fac Gar Fac Gar Fac Gar Res Gar Res Gar Res Qua Frg Gar Acc Distress Signals 33 | . 3 1 2 . 4 . 4 . . . . . 5 . 8 . 1 . . . 1 . 2 1 1 . . Communications Jammed 379 | . . . . . . . . . . . . . . . . . 17 . 49 . . . 166 . 12 . 135 Distress Signals 379 | . . . . . . . . . . . . . . . . . 17 . 49 . . . 166 . 12 . 135 Times Spotted 989 | . 20 39 31 27 35 15 28 38 14 33 15 52 42 40 65 38 56 41 26 50 24 45 47 27 61 34 46 Peak Tracking Total 15 | . 4 5 6 6 4 3 3 5 5 4 4 4 6 10 6 10 15 5 5 6 6 7 7 5 5 14 6 Tactical Retreats 41 | . . 1 1 1 4 1 4 1 . 2 1 2 3 1 3 . . 8 . 2 . . . 1 1 2 2 Traps | -11 -10 -9 -9 -9 -8 -8 -8 -8 -7 -7 -6 -6 -5 -5 -5 -5 -4 -4 -3 -3 -2 -2 -2 -2 -2 -2 -1 ------- Run | Yrd Mat Mat Sto Gar Mat Gar Mat Gar Fac Gar Fac Gar Fac Gar Fac Gar Fac Gar Res Gar Res Gar Res Qua Frg Gar Acc Traps Triggered 62 | . . . 1 2 . 1 . 7 4 2 2 10 2 7 3 2 1 1 . 1 . 2 1 . 8 3 2 Indirectly . | . . . . . . . . . . . . . . . . . . . . . . . . . . . . Trap Hack Attempts 16 | . . . 16 . . . . . . . . . . . . . . . . . . . . . . . . Triggered . | . . . . . . . . . . . . . . . . . . . . . . . . . . . . Disarmed 4 | . . . . . . . 4 . . . . . . . . . . . . . . . . . . . . Reprogrammed 2 | . . . 2 . . . . . . . . . . . . . . . . . . . . . . . . Reused . | . . . . . . . . . . . . . . . . . . . . . . . . . . . . Traps Extracted . | . . . . . . . . . . . . . . . . . . . . . . . . . . . . Installed . | . . . . . . . . . . . . . . . . . . . . . . . . . . . . Triggered . | . . . . . . . . . . . . . . . . . . . . . . . . . . . . Machines | -11 -10 -9 -9 -9 -8 -8 -8 -8 -7 -7 -6 -6 -5 -5 -5 -5 -4 -4 -3 -3 -2 -2 -2 -2 -2 -2 -1 ---------- Run | Yrd Mat Mat Sto Gar Mat Gar Mat Gar Fac Gar Fac Gar Fac Gar Fac Gar Fac Gar Res Gar Res Gar Res Qua Frg Gar Acc Machines Disabled 117 | . . 2 5 5 1 4 . 1 . 1 . 7 3 5 6 11 4 5 1 6 3 5 3 7 27 4 1 Max in Single Turn 2 | . . 1 1 1 1 1 . 1 . 1 . 1 1 1 1 1 1 1 1 1 1 1 1 1 2 1 1 Garrison Access 5 | . . . . . . . . . . . . . . . . . . . . . . . 2 1 . . 2 Garrison Relay 42 | . . . . 3 . 2 . 1 . 1 . 7 . 4 . 7 . 5 . 3 . 4 . . . 5 . Machines Repaired . | . . . . . . . . . . . . . . . . . . . . . . . . . . . . Machines Dismantled 2 | . . . 2 . . . . . . . . . . . . . . . . . . . . . . . . Machines Sabotaged . | . . . . . . . . . . . . . . . . . . . . . . . . . . . . Overloaded Fab Kills . | . . . . . . . . . . . . . . . . . . . . . . . . . . . . Hacking | -11 -10 -9 -9 -9 -8 -8 -8 -8 -7 -7 -6 -6 -5 -5 -5 -5 -4 -4 -3 -3 -2 -2 -2 -2 -2 -2 -1 --------- Run | Yrd Mat Mat Sto Gar Mat Gar Mat Gar Fac Gar Fac Gar Fac Gar Fac Gar Fac Gar Res Gar Res Gar Res Qua Frg Gar Acc Machines Accessed 141 | . 9 9 11 3 12 2 11 4 7 2 6 2 11 3 7 2 5 2 1 3 3 3 4 4 3 5 7 Terminals 104 | . 7 7 9 3 8 2 8 4 4 2 3 2 7 3 3 2 4 2 . 3 2 3 2 2 2 5 5 Fabricators 8 | . . . . . . . . . 2 . 2 . 2 . 2 . . . . . . . . . . . . Repair Stations 9 | . . 2 1 . 2 . 1 . . . . . 1 . 1 . . . . . . . . 1 . . . Recycling Units 2 | . 2 . . . . . . . . . . . . . . . . . . . . . . . . . . Scanalyzers 2 | . . . . . 1 . 1 . . . . . . . . . . . . . . . . . . . . Garrison Access 16 | . . . 1 . 1 . 1 . 1 . 1 . 1 . 1 . 1 . 1 . 1 . 2 1 1 . 2 Total Hacks 351 | . 28 20 27 8 53 5 34 5 18 3 21 2 23 5 21 4 11 3 2 5 5 4 7 9 3 12 13 Successful 188 | . 15 17 12 4 23 1 26 4 11 2 11 1 11 1 9 2 4 . 2 1 3 1 5 7 1 6 8 Failed 162 | . 12 3 15 4 30 4 8 1 7 1 10 1 12 4 12 2 7 3 . 4 2 3 2 2 2 6 5 Catastrophic 31 | . 1 . 6 2 2 . 1 . 1 . 1 1 . 2 2 1 . 2 . 2 2 1 1 . 1 1 1 Database Lockouts 1 | . 1 . . . . . . . . . . . . . . . . . . . . . . . . . . Manual 172 | . 18 11 18 4 37 4 20 1 10 . 11 . 5 . 9 . 7 . 1 . 2 . . 4 2 7 1 Terminals 260 | . 25 16 23 8 40 5 28 5 11 3 13 2 13 5 4 4 9 3 . 5 3 4 3 4 2 12 10 Fabricators 22 | . . . . . . . . . 4 . 5 . 5 . 8 . . . . . . . . . . . . Repair Stations 26 | . . 4 3 . 7 . 2 . . . . . 2 . 6 . . . . . . . . 2 . . . Recycling Units 3 | . 3 . . . . . . . . . . . . . . . . . . . . . . . . . . Scanalyzers 6 | . . . . . 4 . 2 . . . . . . . . . . . . . . . . . . . . Garrison Access 34 | . . . 1 . 2 . 2 . 3 . 3 . 3 . 3 . 2 . 2 . 2 . 4 3 1 . 3 Terminal Hacks 71 | . 6 6 5 2 5 1 9 3 4 2 3 1 5 1 . 2 2 . . 1 . 1 1 2 . 4 5 Part Schematic 1 | . . . . . . . . . . . 1 . . . . . . . . . . . . . . . . Robot Schematic 2 | . 1 . . . 1 . . . . . . . . . . . . . . . . . . . . . . Robot Analysis 2 | . 1 . . . . . . . . . . . . . . . . . . . . . . . . . 1 Prototype ID Bank 6 | . 2 . . . 1 . 3 . . . . . . . . . . . . . . . . . . . . Open Door 9 | . . . 2 . . . . . . 1 . 1 . 1 . 1 . . . . . 1 . . . 1 1 Level Access Points 1 | . . . . . . . . . . . . . . . . . . . . . . . . . . . 1 Branch Access Points 1 | . . . . . . . . . . . . . . . . . . . . . . . . . . . 1 Emergency Access Points 4 | . . . . 1 . . . 1 . 1 . . . . . 1 . . . . . . . . . . . Terminal Index 3 | . . . . . . . 1 . 1 . . . . . . . . . . . . . 1 . . . . Alert Level 1 | . . . 1 . . . . . . . . . . . . . . . . . . . . . . . . Unreport Threat 13 | . 1 2 2 . 2 . 2 . 2 . . . 2 . . . . . . . . . . . . . . Locate Traps 3 | . . 1 . . . . 1 . . . . . . . . . 1 . . . . . . . . . . Disarm Traps 1 | . . . . . . . 1 . . . . . . . . . . . . . . . . . . . . Dispatch Records 1 | . . 1 . . . . . . . . . . . . . . . . . . . . . . . . . Recall Investigation 1 | . . . . . . . . . . . 1 . . . . . . . . . . . . . . . . Recall Extermination 1 | . . . . . . . . . . . 1 . . . . . . . . . . . . . . . . Hauler Manifests 7 | . 1 1 . . 1 . 1 . 1 . . . 1 . . . . . . . . . . 1 . . . Registered Components 3 | . . 1 . . . . . . . . . . 1 . . . . . . . . . . . . . 1 Zone Layout 3 | . . . . . . . . . . . . . 1 . . . 1 . . . . . . 1 . . . Garrison Registry 5 | . . . . 1 . 1 . 1 . . . . . . . . . . . . . . . . . 2 . Patrol Navigation 2 | . . . . . . . . 1 . . . . . . . . . . . . . . . . . 1 . Security Stations 1 | . . . . . . . . . . . . . . . . . . . . 1 . . . . . . . Fabricator Hacks 10 | . . . . . . . . . 3 . 5 . 1 . 1 . . . . . . . . . . . . Network Status 3 | . . . . . . . . . 1 . 1 . . . 1 . . . . . . . . . . . . Load Schematic 4 | . . . . . . . . . 1 . 2 . 1 . . . . . . . . . . . . . . Build 3 | . . . . . . . . . 1 . 2 . . . . . . . . . . . . . . . . Repair Station Hacks 16 | . . 4 1 . 6 . 2 . . . . . 1 . 2 . . . . . . . . . . . . Scan Component 9 | . . 2 1 . 3 . 1 . . . . . 1 . 1 . . . . . . . . . . . . Repair 7 | . . 2 . . 3 . 1 . . . . . . . 1 . . . . . . . . . . . . Recycling Unit Hacks . | . . . . . . . . . . . . . . . . . . . . . . . . . . . . Scanalyzer 4 | . . . . . 2 . 2 . . . . . . . . . . . . . . . . . . . . Insert Component 2 | . . . . . 1 . 1 . . . . . . . . . . . . . . . . . . . . Analyze 2 | . . . . . 1 . 1 . . . . . . . . . . . . . . . . . . . . Garrison Access Hacks 26 | . . . 1 . 2 . 2 . 2 . 1 . 2 . 2 . 2 . 1 . 1 . 4 2 1 . 3 Unlock Access 11 | . . . 1 . 1 . 1 . 1 . 1 . 1 . 1 . 1 . 1 . 1 . . . 1 . . Seal Access 5 | . . . . . . . . . . . . . . . . . . . . . . . 2 1 . . 2 Coupler Status 10 | . . . . . 1 . 1 . 1 . . . 1 . 1 . 1 . . . . . 2 1 . . 1 Unauthorized Hacks 61 | . 9 7 5 2 8 . 11 1 2 . 2 . 2 . 4 . . . 1 . 2 . . 3 . 2 . Terminals 49 | . 7 7 5 2 8 . 11 1 1 . 2 . 1 . . . . . . . 1 . . 1 . 2 . Track 5 | . . . . 1 . . 3 . . . . . . . . . . . . . . . . . . 1 . Assimilate 2 | . . . . . 2 . . . . . . . . . . . . . . . . . . . . . . Botnet 10 | . 2 2 . 1 . . 2 1 . . 1 . . . . . . . . . . . . 1 . . . Disrupt 1 | . . . . . . . . . . . . . . . . . . . . . . . . . . 1 . Operators 6 | . . . . . 1 . 1 . 1 . 1 . 1 . . . . . . . 1 . . . . . . Skim 25 | . 5 5 5 . 5 . 5 . . . . . . . . . . . . . . . . . . . . Fabricators 3 | . . . . . . . . . . . . . 1 . 2 . . . . . . . . . . . . Liberate 1 | . . . . . . . . . . . . . . . 1 . . . . . . . . . . . . Haulers 2 | . . . . . . . . . . . . . 1 . 1 . . . . . . . . . . . . Repair Stations 2 | . . . . . . . . . . . . . . . 1 . . . . . . . . 1 . . . Mechanics 2 | . . . . . . . . . . . . . . . 1 . . . . . . . . 1 . . . Recycling Units 2 | . 2 . . . . . . . . . . . . . . . . . . . . . . . . . . Tunnel 2 | . 2 . . . . . . . . . . . . . . . . . . . . . . . . . . Scanalyzers . | . . . . . . . . . . . . . . . . . . . . . . . . . . . . Garrison Access 5 | . . . . . . . . . 1 . . . . . 1 . . . 1 . 1 . . 1 . . . Restock 4 | . . . . . . . . . 1 . . . . . . . . . 1 . 1 . . 1 . . . Eject 1 | . . . . . . . . . . . . . . . 1 . . . . . . . . . . . . Data Cores Recovered 4 | . . 1 . . . . . . . . . . 1 . . . . . . . 1 . . . 1 . . Used 1 | . . 1 . . . . . . . . . . . . . . . . . . . . . . . . . Hacking Detections 114 | . 7 6 8 3 10 2 10 2 7 1 6 1 8 2 6 1 5 2 . 3 3 2 3 3 3 4 6 Full Trace Events 11 | . . . . 1 1 . . . 1 . 3 . 3 . 1 . . . . . . . . . . . 1 Feedback Events 1 | . . . . 1 . . . . . . . . . . . . . . . . . . . . . . . Corruption 1 | . . . . 1 . . . . . . . . . . . . . . . . . . . . . . . Feedback Blocked . | . . . . . . . . . . . . . . . . . . . . . . . . . . . . Robot Schematics Acquired 4 | . 1 . . . 1 . . . . . . . . . . . . . . . . . . 1 1 . . Robots Built . | . . . . . . . . . . . . . . . . . . . . . . . . . . . . Authchips . | . . . . . . . . . . . . . . . . . . . . . . . . . . . . Time . | . . . . . . . . . . . . . . . . . . . . . . . . . . . . Total Robot Build Rating . | . . . . . . . . . . . . . . . . . . . . . . . . . . . . Part Schematics Acquired 8 | . . . . . . . 1 . . . 1 . . . . . . . . . . . . 2 4 . . Parts Built 3 | . . . . . . . . . 2 . 1 . . . . . . . . . . . . . . . . Authchips . | . . . . . . . . . . . . . . . . . . . . . . . . . . . . Time 160 | . . . . . . . . . 58 . 102 . . . . . . . . . . . . . . . . Total Part Build Rating 15 | . . . . . . . . . 14 . 1 . . . . . . . . . . . . . . . . Parts Repaired 7 | . . 2 . . 3 . 1 . . . . . . . 1 . . . . . . . . . . . . Time 286 | . . 92 . . 122 . 44 . . . . . . . 28 . . . . . . . . . . . . Parts Recycled . | . . . . . . . . . . . . . . . . . . . . . . . . . . . . Recycled Matter . | . . . . . . . . . . . . . . . . . . . . . . . . . . . . Retrieved Matter . | . . . . . . . . . . . . . . . . . . . . . . . . . . . . Retrieved Components . | . . . . . . . . . . . . . . . . . . . . . . . . . . . . Parts Scanalyzed 1 | . . . . . 1 . . . . . . . . . . . . . . . . . . . . . . Part Schematics Acquired 1 | . . . . . . . 1 . . . . . . . . . . . . . . . . . . . . Parts Damaged 1 | . . . . . . . 1 . . . . . . . . . . . . . . . . . . . . Bothacking | -11 -10 -9 -9 -9 -8 -8 -8 -8 -7 -7 -6 -6 -5 -5 -5 -5 -4 -4 -3 -3 -2 -2 -2 -2 -2 -2 -1 ------------ Run | Yrd Mat Mat Sto Gar Mat Gar Mat Gar Fac Gar Fac Gar Fac Gar Fac Gar Fac Gar Res Gar Res Gar Res Qua Frg Gar Acc Used RIF Installer 15 | . . . . 2 . 2 . 1 . 1 . 2 . 1 . 2 . 1 . 1 . 1 . . . 1 . Coupler Efficiency 1 | . . . . . . . . . . . . 1 . . . . . . . . . . . . . . . Command Fork 1 | . . . . . . . . . . . . . . . . . . . . . . 1 . . . . . Threat Obfuscator 2 | . . . . . . . . . . 1 . . . . . . . 1 . . . . . . . . . Signal Jammer 1 | . . . . . . . . . . . . . . . . 1 . . . . . . . . . . . Robot Detection 1 | . . . . . . . . 1 . . . . . . . . . . . . . . . . . . . Watcher Feeds 1 | . . . . . . 1 . . . . . . . . . . . . . . . . . . . . . Alert ID Control 1 | . . . . . . . . . . . . . . 1 . . . . . . . . . . . . . Structural Interface 1 | . . . . 1 . . . . . . . . . . . . . . . . . . . . . . . Program Shield 1 | . . . . . . 1 . . . . . . . . . . . . . . . . . . . . . Autooverride 1 | . . . . . . . . . . . . . . . . 1 . . . . . . . . . . . Autoassimilate 2 | . . . . . . . . . . . . 1 . . . . . . . . . . . . . 1 . Crosswire 1 | . . . . . . . . . . . . . . . . . . . . 1 . . . . . . . Robots Hacked 282 | . . . . . . . 1 4 1 5 2 21 17 19 21 14 11 7 6 19 9 28 17 11 25 20 24 Non-combat 47 | . . . . . . . 1 . . . . . 7 2 10 . 3 . 2 1 2 . 6 1 5 . 7 Combat 235 | . . . . . . . . 4 1 5 2 21 10 17 11 14 8 7 4 18 7 28 11 10 20 20 17 Autooverrided 28 | . . . . . . . . . . . . . . . . 1 1 3 . 3 2 4 2 . 5 4 3 Autoassimilated 29 | . . . . . . . . . . . . 2 1 3 1 2 . 2 1 4 . 4 1 1 3 2 2 Robot Hacks Applied 254 | . . . . . . . 1 4 1 5 2 21 18 16 24 12 12 3 5 14 8 22 14 13 19 17 23 parse_system 17 | . . . . . . . . . . . . 2 . . 3 2 1 1 . 1 . 2 . 2 . . 3 drop_inventory 17 | . . . . . . . . . . . . . 4 . 1 . . . 1 . 1 . 4 1 . . 5 ignore_parts 4 | . . . . . . . . . . . . . 2 . 2 . . . . . . . . . . . . purge_threat 4 | . . . . . . . . . . . . . . . 2 . 1 . . . 1 . . . . . . block_reporting 5 | . . . . . . . . . . . . . . . . . 1 . . . . . 1 . 3 . . map_route 1 | . . . . . . . . . . . . . . . . . . . . . . . . . 1 . . redirect_shields 1 | . . . . . . . . . . . . . . . . . 1 . . . . . . . . . . disable_scanner 6 | . . . . . . . . . . . . . . . . . . . . . . . . 4 2 . . find_shortcuts 1 | . . . . . . . . . . . . . . . . 1 . . . . . . . . . . . find_garrison 3 | . . . . . . . . . . . . . 2 . 1 . . . . . . . . . . . . scatter_targeting 1 | . . . . . . . . . . . . . . . . . . . . . . 1 . . . . . disrupt_area 2 | . . . . . . . . . . . . . . . . . . . . . . 2 . . . . . amplify_resonance 25 | . . . . . . . . 1 1 1 . 7 1 . 2 . . 2 . 2 . 2 1 . 1 2 2 go_dormant 1 | . . . . . . . . . . . . 1 . . . . . . . . . . . . . . . overwrite_iff 43 | . . . . . . . . 3 . 2 2 5 2 2 2 2 1 . . 7 1 7 2 1 . 4 . formatsys_low 18 | . . . . . . . 1 . . . . . . 2 3 . 1 . 1 1 1 . 1 2 4 . 1 formatsys_high 105 | . . . . . . . . . . 2 . 6 7 12 8 7 6 . 3 3 4 8 5 3 8 11 12 Relay Couplers Released 206 | . . . . 15 . 6 . 3 4 5 . 28 . 17 3 32 4 22 4 12 4 15 2 3 8 15 4 Ejected 3 | . . . . . . . . . . . . . . . 3 . . . . . . . . . . . . Machine Destruction 172 | . . . . 15 . 6 . 3 . 5 . 28 . 17 . 32 . 22 . 12 . 15 2 . . 15 . Programmers 31 | . . . . . . . . . 4 . . . . . . . 4 . 4 . 4 . . 3 8 . 4 Attached 87 | . . . . . . . 1 1 1 2 . 7 4 8 6 5 3 6 . 7 1 10 2 5 5 10 3 Crosswired 22 | . . . . . . . . . . . . . . . . . . . . 2 2 9 1 . . 5 3 Fabnet Peak Effective % . | . . . . . . . . . . . . . . . . . . . . . . . . . . . . Robots Rewired 28 | . . . . . . . . . . 3 . 4 . 4 . . . 6 . 2 . 7 . . . 2 . Allies Hacked 6 | . . . . . . . . . . . . . . . . . 1 . 1 . . 1 . . 1 1 1 Hacks Repelled . | . . . . . . . . . . . . . . . . . . . . . . . . . . . . Allies | -11 -10 -9 -9 -9 -8 -8 -8 -8 -7 -7 -6 -6 -5 -5 -5 -5 -4 -4 -3 -3 -2 -2 -2 -2 -2 -2 -1 -------- Run | Yrd Mat Mat Sto Gar Mat Gar Mat Gar Fac Gar Fac Gar Fac Gar Fac Gar Fac Gar Res Gar Res Gar Res Qua Frg Gar Acc Total Allies 256 | . . . . 1 1 . 1 3 . 7 2 17 10 23 14 13 9 11 5 20 8 34 11 7 19 23 17 Largest Group 19 | . . . . . 1 . 1 2 1 4 2 8 8 18 19 12 12 4 3 6 6 14 12 9 9 6 7 Highest-Rated Group 1124 | . . . . . 10 . 23 52 23 119 64 411 411 746 815 567 567 210 168 350 378 723 713 521 1124 308 380 Highest-Rated Ally 344 | . . . . . 10 . 23 29 23 39 32 148 148 85 116 64 110 119 64 119 64 119 119 344 344 278 64 Total Orders 65 | . . . . . . . 5 6 . . . . 2 1 6 7 . . 2 2 . . 1 . 30 . 3 STAY 27 | . . . . . . . 2 3 . . . . 1 . 1 3 . . 1 1 . . . . 14 . 1 ROAM 1 | . . . . . . . . . . . . . . . . . . . . . . . . . 1 . . FOLLOW 19 | . . . . . . . 1 . . . . . 1 . 1 3 . . . . . . . . 12 . 1 AID 18 | . . . . . . . 2 3 . . . . . 1 4 1 . . 1 1 . . 1 . 3 . 1 Ally Attacks 1555 | . . . . 1 . . . 8 . 16 18 33 63 105 176 50 71 94 26 75 53 130 147 58 309 64 58 Total Damage 56256 | . . . . 64 . . . 95 . 412 272 764 1679 3351 6727 1511 2380 2946 907 2737 1956 4339 5638 1960 13862 2897 1759 Kills 310 | . . . . . . . . . . 4 1 4 13 23 44 9 17 23 2 22 9 20 29 9 67 7 7 Allies Corrupted 20 | . . . . . . . . . . . . . 3 . 1 2 . . 1 . 2 . 2 2 1 2 4 Allies Melted 7 | . . . . . . . . . . . . 1 . 1 . . . . . . 1 . . . . 4 . Intel | -11 -10 -9 -9 -9 -8 -8 -8 -8 -7 -7 -6 -6 -5 -5 -5 -5 -4 -4 -3 -3 -2 -2 -2 -2 -2 -2 -1 ------- Run | Yrd Mat Mat Sto Gar Mat Gar Mat Gar Fac Gar Fac Gar Fac Gar Fac Gar Fac Gar Res Gar Res Gar Res Qua Frg Gar Acc Active Infowar (turns) 323 | . . . . . . . . . . . . . . . . . 284 . . . . . . . . . 39 Optics 323 | . . . . . . . . . . . . . . . . . 284 . . . . . . . . . 39 Robot Analysis Total 2 | . 1 . . . . . . . . . . . . . . . . . . . . . . . . . 1 Derelict Logs Recovered . | . . . . . . . . . . . . . . . . . . . . . . . . . . . . Drone Launches . | . . . . . . . . . . . . . . . . . . . . . . . . . . . . Drone Recoveries . | . . . . . . . . . . . . . . . . . . . . . . . . . . . . Exploration | -11 -10 -9 -9 -9 -8 -8 -8 -8 -7 -7 -6 -6 -5 -5 -5 -5 -4 -4 -3 -3 -2 -2 -2 -2 -2 -2 -1 ------------- Run | Yrd Mat Mat Sto Gar Mat Gar Mat Gar Fac Gar Fac Gar Fac Gar Fac Gar Fac Gar Res Gar Res Gar Res Qua Frg Gar Acc Turns Passed 44228 | 73 1032 2426 1755 1333 2579 1147 3190 1814 1306 1025 1097 2257 1857 1768 1696 1110 1167 1768 1790 1276 1380 1434 1054 1125 3193 1012 1564 Spaces Moved 19936 | 42 524 1198 717 631 749 425 1296 725 664 572 455 780 946 639 709 580 594 897 419 633 603 716 505 631 1719 690 877 Core 87 | 3 . . . . . . . . . . . . . . . . . . . . . . . . 84 . . Treads 17383 | 39 524 1198 717 631 749 425 1296 725 664 572 455 780 946 639 709 580 594 897 419 633 603 716 505 631 215 . 521 Legs 2466 | . . . . . . . . . . . . . . . . . . . . . . . . . 1420 690 356 Wheels . | . . . . . . . . . . . . . . . . . . . . . . . . . . . . Hover . | . . . . . . . . . . . . . . . . . . . . . . . . . . . . Flight . | . . . . . . . . . . . . . . . . . . . . . . . . . . . . Fastest Speed 50 | 50 160 160 160 160 235 238 158 145 145 145 148 170 161 170 160 160 163 163 163 163 163 166 153 153 50 80 110 Average Speed 172 | 152 160 160 160 167 239 238 200 215 145 146 210 226 165 244 196 160 163 163 163 163 165 166 163 153 132 100 148 Slowest Speed 250 | 160 160 160 240 240 240 238 238 225 225 148 228 250 170 250 250 160 245 163 163 163 166 166 166 153 250 110 250 Overloaded Moves . | . . . . . . . . . . . . . . . . . . . . . . . . . . . . Propulsion Burnouts . | . . . . . . . . . . . . . . . . . . . . . . . . . . . . Robots Hopped 1 | . . . . . . . . . . . . . . . . . . . . . . 1 . . . . . Potential Cave-ins 36 | . . . . . . . . . . . . . . . 2 . . . . . . . . . 34 . . Cave-ins Triggered 3 | . . . . . . . . . . . . . . . 1 . . . . . . . . . 2 . . Exploration Rate (%) 59 | 3 65 92 92 73 57 66 76 88 23 92 12 95 41 90 31 84 15 95 12 96 18 95 25 80 34 88 34 Regions Visited 27 Branch Regions 3 Pre-discovered Areas 12 | . 5 1 1 . 2 . 3 . . . . . . . . . . . . . . . . . . . . Known Exits Taken 14 | . 1 1 1 . 1 . 1 . 1 . 1 . 1 . 1 . 1 . 1 . 1 . 1 . 1 . . Unknown Exits Taken 2 | 1 . . . . . . . . . . . . . . . . . . . . . . . 1 . . . Scrap Searched . | . . . . . . . . . . . . . . . . . . . . . . . . . . . . Spaces Dug 160 | . . 1 5 . 13 . 2 1 5 . . 1 11 1 4 . 10 3 3 1 3 4 3 2 86 . 1 Terrain Destroyed 607 | . . 1 31 14 56 . 2 1 9 . . 1 28 19 28 41 52 15 36 23 6 8 15 8 209 . 4 Melee 4 | . . 1 . . . . 2 1 . . . . . . . . . . . . . . . . . . . Projectile 397 | . . . 10 . 46 . . . 9 . . 1 28 1 21 1 30 13 16 5 5 8 5 8 186 . 4 AOE 206 | . . . 21 14 10 . . . . . . . . 18 7 40 22 2 20 18 1 . 10 . 23 . . Terrain Rammed . | . . . . . . . . . . . . . . . . . . . . . . . . . . . . Walls Destroyed . | . . . . . . . . . . . . . . . . . . . . . . . . . . . . Machines Disabled . | . . . . . . . . . . . . . . . . . . . . . . . . . . . . Actions | -11 -10 -9 -9 -9 -8 -8 -8 -8 -7 -7 -6 -6 -5 -5 -5 -5 -4 -4 -3 -3 -2 -2 -2 -2 -2 -2 -1 --------- Run | Yrd Mat Mat Sto Gar Mat Gar Mat Gar Fac Gar Fac Gar Fac Gar Fac Gar Fac Gar Res Gar Res Gar Res Qua Frg Gar Acc Total 28236 | 48 613 1542 1175 797 1408 496 1775 855 951 681 534 1097 1223 825 988 759 779 1192 1524 861 982 970 726 788 2620 959 1068 Wait 4734 | . 18 161 316 47 547 15 373 23 219 38 35 79 106 47 101 44 52 104 1025 74 303 78 116 65 562 138 48 Move 19910 | 41 523 1197 717 630 749 424 1296 724 663 571 455 779 946 638 707 579 594 896 418 632 603 713 504 630 1716 689 876 Hop 1 | . . . . . . . . . . . . . . . . . . . . . . 1 . . . . . Pick Up 268 | 1 8 20 5 14 9 10 14 11 4 2 1 18 12 13 5 12 4 12 3 4 6 19 . 5 25 11 20 Fast Attach 137 | 6 3 5 5 . 3 . 5 . 4 . . 8 5 4 10 6 7 6 1 5 3 4 9 . 14 17 7 Attach 131 | . . 5 1 7 4 1 3 3 3 1 4 12 7 6 3 3 6 2 2 3 3 3 2 3 28 6 10 Detach 71 | . 2 1 . 4 1 . 2 1 1 . . 6 4 2 6 2 5 2 1 1 3 1 3 . 15 4 4 Swap 336 | . 3 20 18 13 11 . 13 6 14 13 5 24 19 13 16 8 11 19 5 18 8 14 12 10 20 7 16 Drop 256 | . 1 27 15 9 12 7 16 10 9 4 1 12 11 12 9 14 7 13 1 2 6 15 9 4 20 2 8 Fire 2073 | . 50 99 68 71 63 37 48 67 33 35 33 129 105 71 125 84 88 82 66 103 43 93 67 69 207 72 65 Melee 8 | . . 1 . . . . 2 2 . 1 . 2 . . . . . . . . . . . . . . . Ram 2 | . . . . . . . . . . . . . . . . . . . . . . . . . 1 1 . Kick 16 | . . . . . . . . . . . . . . . . . . . . . . . . . 5 9 2 Crush 64 | . 5 6 2 . 9 . 2 . 1 . . 3 5 5 5 . 3 2 . 2 2 . 4 . . . 8 Escape Stasis 41 | . . . . 2 . 2 . 8 . . . 16 . 8 1 . . . . . . . . . 4 . . Rewire 160 | . . . . . . . 1 . . 16 . 9 3 6 . 7 2 54 2 17 2 29 . 2 3 3 4 Trap 16 | . . . 16 . . . . . . . . . . . . . . . . . . . . . . . . Miscellaneous 12 | . . . 12 . . . . . . . . . . . . . . . . . . . . . . . . Route ------- -11/Scrapyard -10/Materials (discovered 5 exits: *Mat x3 / *Min / Sub) -9/Materials (discovered 7 exits: *Mat x3 / *Min x2 / *Sto x2) -9/Storage (discovered 3 exits: *Mat / Rec / Gar) -9/Garrison (discovered 3 exits: *Mat x3) -8/Materials (discovered 4 exits: *Fac x3 / Gar) -8/Garrison (discovered 3 exits: *Mat x3) -8/Materials (discovered 3 exits: *Fac x2 / Gar) -8/Garrison (discovered 3 exits: *Fac x3) -7/Factory (discovered 4 exits: Fac / *Low x2 / Gar) -7/Garrison (discovered 3 exits: *Fac x3) -6/Factory (discovered 2 exits: *Fac / Gar) -6/Garrison (discovered 3 exits: *Fac x3) -5/Factory (discovered 2 exits: *Fac / Gar) -5/Garrison (discovered 3 exits: *Fac x3) -5/Factory (discovered 4 exits: *Fac / [*Upp x2] / Gar) -5/Garrison (discovered 3 exits: *Fac x3) -4/Factory (discovered 3 exits: *Res / [*Upp] / Gar) -4/Garrison (discovered 3 exits: *Res x3) -3/Research (discovered 2 exits: *Tes / Gar) -3/Garrison (discovered 3 exits: *Res x3) -2/Research -2/Garrison (discovered 3 exits: *Res x3) -2/Research -2/Quarantine (discovered 3 exits: *Acc / [*Sec] / *Frg) -2/Protoforge (discovered 2 exits: *Acc / Gar) -2/Garrison (discovered 3 exits: *Acc x3) -1/Access (discovered 2 exits: *Sur / Com) To Epsilon Eridani History --------- Turn | Location | Event 12 | -11/Scrapyard | Discovered new exit (range 16) 74 | -11/Scrapyard | Entered Materials 180 | -10/Materials | Discovered new exit (range 14) 307 | -10/Materials | Build established: Mutant 373 | -10/Materials | Discovered new exit (range 12) 381 | -10/Materials | Destroyed 8 combat bots 599 | -10/Materials | Learned location of 1 exit from Storage 661 | -10/Materials | Learned location of 1 exit from Recycling 713 | -10/Materials | Learned location of Storage (-9) 720 | -10/Materials | Central database locked down 757 | -10/Materials | Loaded intel: 8 terminal locations 793 | -10/Materials | Learned location of Recycling (-9) 820 | -10/Materials | Identified exit to Materials 820 | -10/Materials | Identified exit to Mines 846 | -10/Materials | Core integrity fell below 50% 859 | -10/Materials | Learned Storage emergency access door positions 910 | -10/Materials | Learned location of Mines (-10) 970 | -10/Materials | Identified exit to Subcaves 970 | -10/Materials | Learned location of 2 exits from Materials 1106 | -10/Materials | Entered another Materials area 1106 | -9/Materials | Evolved 2 slots: Propulsion x1, Utility x1 1107 | -9/Materials | Identified exit to Materials 1107 | -9/Materials | Identified exit to Storage 1405 | -9/Materials | Discovered exit to Storage (range 10) 1656 | -9/Materials | Discovered exit to Materials (range 5) 2260 | -9/Materials | Discovered new exit (range 16) 2496 | -9/Materials | Learned Storage terminal intel 2535 | -9/Materials | Learned 4 Recycling zone layouts 2585 | -9/Materials | Identified exit to Mines 2594 | -9/Materials | Loaded intel: 11 trap records 2645 | -9/Materials | Learned 2 Storage zone layouts 2923 | -9/Materials | Repaired Med. Armor Plating 3310 | -9/Materials | Repaired Hvy. EM Shotgun 3532 | -9/Materials | Entered Storage 3533 | -9/Storage | Identified exit to Recycling 3535 | -9/Storage | Loaded intel: 15 terminal locations 4033 | -9/Storage | Garrison activated, responded to threat 4163 | -9/Storage | Discovered exit to Materials (range 16) 4459 | -9/Storage | Garrison activated, responded to threat 5054 | -9/Storage | Learned location of 1 exit from Recycling 5103 | -9/Storage | Loaded intel: 5 trap records 5142 | -9/Storage | Learned Materials machine intel 5184 | -9/Storage | Learned 4 Materials zone layouts 5287 | -9/Storage | Identified exit to Garrison 5287 | -9/Storage | Entered Garrison 5389 | -9/Garrison | Triggered checkpoint 5415 | -9/Garrison | Garrison Relay disabled 5534 | -9/Garrison | Triggered checkpoint 5557 | -9/Garrison | Destroyed 10 combat bots 5647 | -9/Garrison | Triggered checkpoint 5688 | -9/Garrison | Garrison Relay disabled 5773 | -9/Garrison | Installed Relay Interface Framework 5863 | -9/Garrison | Triggered checkpoint 5937 | -9/Garrison | Discovered exit to Materials (range 56) 5937 | -9/Garrison | Discovered exit to Materials (range 22) 5937 | -9/Garrison | Discovered exit to Materials (range 75) 6015 | -9/Garrison | Core integrity fell below 50% 6086 | -9/Garrison | Expanded RIF knowledge: Structural Interface 6206 | -9/Garrison | Garrison Relay disabled 6257 | -9/Garrison | Rescued a captive Derelict 6257 | -9/Garrison | Rescued a captive Derelict 6521 | -9/Garrison | Build established: Bothacker-Mutant 6620 | -9/Garrison | Entered Materials 6620 | -8/Materials | Evolved 2 slots: Utility x2 6621 | -8/Materials | Identified exit to Factory 6622 | -8/Materials | Loaded intel: 42 machine locations 7263 | -8/Materials | Discovered exit to Factory (range 13) 8095 | -8/Materials | Learned location of Extension (-4) 8104 | -8/Materials | Learned location of 1 exit from Extension 8105 | -8/Materials | Learned location of 1 exit from Storage 8107 | -8/Materials | Learned location of 2 exits from Factory 8118 | -8/Materials | Learned location of Zion (-7) 8184 | -8/Materials | Repaired Lgt. Antimatter Reactor 8229 | -8/Materials | Repaired Gatling Laser 8294 | -8/Materials | Repaired Cooling System 9199 | -8/Materials | Identified exit to Garrison 9199 | -8/Materials | Entered Garrison 9259 | -8/Garrison | Discovered new exit (range 43) 9259 | -8/Garrison | Discovered new exit (range 74) 9259 | -8/Garrison | Discovered new exit (range 66) 9271 | -8/Garrison | Garrison Relay disabled 9340 | -8/Garrison | Triggered checkpoint 9509 | -8/Garrison | Triggered checkpoint 9564 | -8/Garrison | Spotted B-75 Beast 9564 | -8/Garrison | Spotted B-75 Beast 9743 | -8/Garrison | Triggered checkpoint 9775 | -8/Garrison | Triggered checkpoint 9841 | -8/Garrison | Expanded RIF knowledge: Watcher Feeds 10044 | -8/Garrison | Garrison Relay disabled 10140 | -8/Garrison | Expanded RIF knowledge: Program Shield 10346 | -8/Garrison | Entered Materials 10667 | -8/Materials | Garrison activated, responded to threat 12084 | -8/Materials | Learned Factory emergency access door positions 12120 | -8/Materials | Learned location of 1 exit from Extension 12144 | -8/Materials | Learned Factory scanalyzer intel 12166 | -8/Materials | Learned location of 1 exit from Recycling 12167 | -8/Materials | Learned 4 Recycling zone layouts 12175 | -8/Materials | Learned Storage trap positions 12877 | -8/Materials | Repaired Gatling Laser 13536 | -8/Materials | Identified exit to Garrison 13536 | -8/Materials | Entered Garrison 13536 | -8/Garrison | Accompanied by 1 ally 13700 | -8/Garrison | Triggered checkpoint 13734 | -8/Garrison | Expanded RIF knowledge: Robot Detection 13991 | -8/Garrison | Destroyed 7 combat bots 14189 | -8/Garrison | Core integrity fell below 50% 14195 | -8/Garrison | Triggered checkpoint 14245 | -8/Garrison | Triggered checkpoint 14286 | -8/Garrison | Triggered checkpoint 14377 | -8/Garrison | Garrison Relay disabled 14378 | -8/Garrison | Triggered checkpoint 14678 | -8/Garrison | Build established: Botlord-Mutant 15262 | -8/Garrison | Triggered checkpoint 15309 | -8/Garrison | Discovered exit to Factory (range 74) 15309 | -8/Garrison | Discovered exit to Factory (range 6) 15309 | -8/Garrison | Discovered exit to Factory (range 65) 15350 | -8/Garrison | Entered Factory 15350 | -7/Factory | Accompanied by 1 ally 15350 | -7/Factory | Evolved 2 slots: Propulsion x1, Utility x1 15351 | -7/Factory | Identified exit to Factory 15351 | -7/Factory | Identified exit to Lower Caves 15353 | -7/Factory | Loaded intel: 4 scanalyzer locations 15715 | -7/Factory | Fabricated Lgt. Antimatter Reactor? 16463 | -7/Factory | Discovered exit to Lower Caves (range 12) 16602 | -7/Factory | Identified exit to Garrison 16618 | -7/Factory | Garrison activated, responded to threat 16656 | -7/Factory | Entered Garrison 16678 | -7/Garrison | Expanded RIF knowledge: Threat Obfuscation 16724 | -7/Garrison | Triggered checkpoint 16808 | -7/Garrison | Garrison Relay disabled 16878 | -7/Garrison | Triggered checkpoint 17103 | -7/Garrison | Discovered exit to Factory (range 2) 17210 | -7/Garrison | Triggered checkpoint 17256 | -7/Garrison | Triggered checkpoint 17257 | -7/Garrison | Triggered checkpoint 17383 | -7/Garrison | Discovered exit to Factory (range 11) 17542 | -7/Garrison | Triggered checkpoint 17659 | -7/Garrison | Discovered exit to Factory (range 15) 17681 | -7/Garrison | Entered Factory 17681 | -6/Factory | Accompanied by 2 allies 17681 | -6/Factory | Evolved 2 slots: Power x1, Utility x1 17911 | -6/Factory | Discovered new exit (range 4) 18556 | -6/Factory | Fabricated Huge Storage Unit (x1) 18778 | -6/Factory | Identified exit to Garrison 18778 | -6/Factory | Entered Garrison 18874 | -6/Garrison | Expanded RIF knowledge: Coupler Efficiency 19002 | -6/Garrison | Garrison Relay disabled 19018 | -6/Garrison | Triggered checkpoint 19178 | -6/Garrison | Triggered checkpoint 19417 | -6/Garrison | Triggered checkpoint 19447 | -6/Garrison | Garrison Relay disabled 19518 | -6/Garrison | Found Relay Coupler [Proto] 19521 | -6/Garrison | Found Relay Coupler [Proto] 19525 | -6/Garrison | Found Relay Coupler [Proto] 19631 | -6/Garrison | Discovered new exit (range 14) 19784 | -6/Garrison | Triggered checkpoint 19937 | -6/Garrison | Lost 3 allies 20016 | -6/Garrison | Discovered new exit (range 8) 20099 | -6/Garrison | Garrison Relay disabled 20153 | -6/Garrison | Garrison Relay disabled 20204 | -6/Garrison | Garrison Relay disabled 20287 | -6/Garrison | Triggered checkpoint 20290 | -6/Garrison | Garrison Relay disabled 20354 | -6/Garrison | Spotted B-86 Titan 20373 | -6/Garrison | Rewired B-90 Cyclops 20386 | -6/Garrison | Allies destroyed B-86 Titan 20416 | -6/Garrison | Lost 4 parts (1p1n2u) 20489 | -6/Garrison | Found Quantum Capacitor 20612 | -6/Garrison | Triggered checkpoint 20718 | -6/Garrison | Triggered checkpoint 20786 | -6/Garrison | Expanded RIF knowledge: Autoassimilate 20830 | -6/Garrison | Garrison Relay disabled 20973 | -6/Garrison | Discovered new exit (range 13) 21035 | -6/Garrison | Entered Factory 21035 | -5/Factory | Accompanied by 8 allies 21035 | -5/Factory | Evolved 2 slots: Propulsion x1, Utility x1 21598 | -5/Factory | Lost 3 allies 21790 | -5/Factory | Found Mni. Smartbomb Launcher 21893 | -5/Factory | Found Prototype Processor 21893 | -5/Factory | Identified Exp. Targeting Computer 21977 | -5/Factory | Discovered new exit (range 15) 22108 | -5/Factory | Lost 3 allies 22882 | -5/Factory | Identified exit to Garrison 22892 | -5/Factory | Entered Garrison 22892 | -5/Garrison | Accompanied by 4 allies 22926 | -5/Garrison | Triggered checkpoint 22980 | -5/Garrison | Spotted B-75 Beast 22984 | -5/Garrison | Triggered checkpoint 22987 | -5/Garrison | Triggered checkpoint 22993 | -5/Garrison | Assimilated Beast 6a with formatsys_high 23037 | -5/Garrison | Destroyed 9 combat bots 23173 | -5/Garrison | Garrison Relay disabled 23730 | -5/Garrison | Discovered new exit (range 10) 23775 | -5/Garrison | Triggered checkpoint 23795 | -5/Garrison | Garrison Relay disabled 23944 | -5/Garrison | Expanded RIF knowledge: Alert ID Control 23987 | -5/Garrison | Discovered new exit (range 10) 24012 | -5/Garrison | Triggered checkpoint 24077 | -5/Garrison | Garrison Relay disabled 24241 | -5/Garrison | Found Relay Coupler [Proto] 24245 | -5/Garrison | Found Relay Coupler [Proto] 24249 | -5/Garrison | Found Relay Coupler [Proto] 24511 | -5/Garrison | Triggered checkpoint 24535 | -5/Garrison | Garrison Relay disabled 24610 | -5/Garrison | Discovered new exit (range 3) 24660 | -5/Garrison | Entered Factory 24660 | -5/Factory | Accompanied by 17 allies 24951 | -5/Factory | Discovered new exit (range 3) 25282 | -5/Factory | Lost 4 allies 25485 | -5/Factory | Discovered new exit (range 14) 25573 | -5/Factory | Cargo convoy interrupted 25767 | -5/Factory | Lost 4 allies 25877 | -5/Factory | System corruption reached 10% 25932 | -5/Factory | Discovered new exit (range 24) 26108 | -5/Factory | Repaired Lyr. Heavy Armor Plating 26323 | -5/Factory | Crushed by falling debris 26348 | -5/Factory | Identified exit to Garrison 26356 | -5/Factory | Entered Garrison 26356 | -5/Garrison | Accompanied by 6 allies 26390 | -5/Garrison | Triggered checkpoint 26453 | -5/Garrison | Garrison Relay disabled 26536 | -5/Garrison | Triggered checkpoint 26559 | -5/Garrison | Triggered checkpoint 26561 | -5/Garrison | Triggered checkpoint 26566 | -5/Garrison | Triggered checkpoint 26588 | -5/Garrison | Triggered checkpoint 26608 | -5/Garrison | Lost 4 allies 26611 | -5/Garrison | Destroyed 11 combat bots 26660 | -5/Garrison | Garrison Relay disabled 26719 | -5/Garrison | Discovered new exit (range 11) 26734 | -5/Garrison | Expanded RIF knowledge: Autooverride 26776 | -5/Garrison | Triggered checkpoint 26889 | -5/Garrison | Discovered new exit (range 13) 26994 | -5/Garrison | Expanded RIF knowledge: Signal Jamming 27081 | -5/Garrison | Garrison Relay disabled 27103 | -5/Garrison | Garrison Relay disabled 27128 | -5/Garrison | Garrison Relay disabled 27306 | -5/Garrison | Triggered checkpoint 27342 | -5/Garrison | Rescued a captive Derelict 27353 | -5/Garrison | Garrison Relay disabled 27400 | -5/Garrison | Discovered new exit (range 13) 27466 | -5/Garrison | Entered Factory 27466 | -4/Factory | Accompanied by 12 allies 27466 | -4/Factory | Evolved 2 slots: Propulsion x1, Utility x1 27657 | -4/Factory | Discovered new exit (range 12) 27666 | -4/Factory | Lost 5 allies 27997 | -4/Factory | Discovered new exit (range 22) 28073 | -4/Factory | Lost 4 allies 28167 | -4/Factory | Garrison activated, responded to threat 28226 | -4/Factory | Lost 6 allies 28269 | -4/Factory | Found Quantum Capacitor 28280 | -4/Factory | Cargo convoy interrupted 28307 | -4/Factory | Found Prototype Device 28325 | -4/Factory | Destroyed 11 combat bots 28336 | -4/Factory | Found Prototype Device 28336 | -4/Factory | Identified Exp. Thermal Shield (x2) 28349 | -4/Factory | Found Prototype Launcher 28350 | -4/Factory | Identified Point Singularity Launcher 28595 | -4/Factory | Garrison activated, responded to threat 28602 | -4/Factory | System corruption reached 10% 28633 | -4/Factory | Identified exit to Garrison 28633 | -4/Factory | Entered Garrison 28633 | -4/Garrison | Accompanied by 2 allies 28765 | -4/Garrison | Garrison Relay disabled 28787 | -4/Garrison | Triggered checkpoint 28938 | -4/Garrison | Triggered checkpoint 28939 | -4/Garrison | Triggered checkpoint 28989 | -4/Garrison | Triggered checkpoint 29000 | -4/Garrison | Triggered checkpoint 29060 | -4/Garrison | Discovered new exit (range 11) 29165 | -4/Garrison | Triggered checkpoint 29179 | -4/Garrison | Garrison Relay disabled 29454 | -4/Garrison | Rewired Executioner 29495 | -4/Garrison | Triggered checkpoint 29574 | -4/Garrison | Garrison Relay disabled 29606 | -4/Garrison | Discovered new exit (range 8) 29673 | -4/Garrison | Garrison Relay disabled 29795 | -4/Garrison | Found Exp. Core Analyzer 29919 | -4/Garrison | Discovered new exit (range 13) 29990 | -4/Garrison | Expanded RIF knowledge: Threat Obfuscation 30168 | -4/Garrison | Triggered checkpoint 30182 | -4/Garrison | Garrison Relay disabled 30234 | -4/Garrison | Build established: Mutant 30401 | -4/Garrison | Entered Research 30401 | -3/Research | Accompanied by 3 allies 30401 | -3/Research | Evolved 2 slots: Power x1, Utility x1 30418 | -3/Research | Identified exit to Garrison 30442 | -3/Research | Garrison activated, responded to threat 30442 | -3/Research | P-80 Master assimilated allied Assassin 7d 30465 | -3/Research | Discovered new exit (range 33) 31915 | -3/Research | Build established: Botlord-Mutant 32019 | -3/Research | Identified exit to Testing 32191 | -3/Research | Entered Garrison 32191 | -3/Garrison | Accompanied by 1 ally 32347 | -3/Garrison | Triggered checkpoint 32376 | -3/Garrison | Spotted Executioner 32379 | -3/Garrison | Spotted Executioner 32384 | -3/Garrison | Destroyed Executioner 32388 | -3/Garrison | Destroyed Executioner 32408 | -3/Garrison | Found Exp. Targeting Computer 32425 | -3/Garrison | Rewired Executioner 32548 | -3/Garrison | Spotted B-86 Titan 32555 | -3/Garrison | Assimilated Titan 8a with formatsys_high 32611 | -3/Garrison | Destroyed 11 combat bots 32717 | -3/Garrison | Garrison Relay disabled 32770 | -3/Garrison | Rescued a captive Derelict 32819 | -3/Garrison | Discovered new exit (range 8) 32887 | -3/Garrison | Triggered checkpoint 32921 | -3/Garrison | Triggered checkpoint 32971 | -3/Garrison | Triggered checkpoint 33000 | -3/Garrison | Garrison Relay disabled 33058 | -3/Garrison | Discovered new exit (range 11) 33177 | -3/Garrison | Triggered checkpoint 33248 | -3/Garrison | Garrison Relay disabled 33291 | -3/Garrison | Expanded RIF knowledge: Crosswire 33313 | -3/Garrison | Triggered checkpoint 33347 | -3/Garrison | Discovered new exit (range 8) 33393 | -3/Garrison | Learned Research security intel 33403 | -3/Garrison | Spotted B-86 Titan 33403 | -3/Garrison | Spotted B-86 Titan 33467 | -3/Garrison | Entered Research 33467 | -2/Research | Accompanied by 4 allies 33467 | -2/Research | Evolved 2 slots: Utility x2 33573 | -2/Research | Identified exit to Garrison 33912 | -2/Research | Spotted B-90 Cyclops 33917 | -2/Research | Destroyed B-90 Cyclops 34315 | -2/Research | Destroyed 7 combat bots 34645 | -2/Research | Garrison activated, responded to threat 34847 | -2/Research | Entered Garrison 34847 | -2/Garrison | Accompanied by 1 ally 34863 | -2/Garrison | Rescued a captive Derelict 34864 | -2/Garrison | Rescued a captive Derelict 34988 | -2/Garrison | Lost 5 allies 35069 | -2/Garrison | Garrison Relay disabled 35075 | -2/Garrison | Triggered checkpoint 35254 | -2/Garrison | Spotted B-90 Cyclops 35269 | -2/Garrison | Triggered checkpoint 35284 | -2/Garrison | Allies destroyed B-90 Cyclops 35326 | -2/Garrison | Triggered checkpoint 35330 | -2/Garrison | Lost 6 allies 35388 | -2/Garrison | Expanded RIF knowledge: Command Fork 35413 | -2/Garrison | Triggered checkpoint 35424 | -2/Garrison | Garrison Relay disabled 35450 | -2/Garrison | Garrison Relay disabled 35533 | -2/Garrison | Discovered new exit (range 12) 35637 | -2/Garrison | Triggered checkpoint 35672 | -2/Garrison | Discovered new exit (range 13) 35766 | -2/Garrison | Spotted Striker 35808 | -2/Garrison | Destroyed Striker 35819 | -2/Garrison | Rewired Executioner 35833 | -2/Garrison | Lost 4 allies 35867 | -2/Garrison | Triggered checkpoint 35884 | -2/Garrison | Garrison Relay disabled 36143 | -2/Garrison | Triggered checkpoint 36227 | -2/Garrison | Discovered new exit (range 13) 36281 | -2/Garrison | Entered Research 36281 | -2/Research | Accompanied by 11 allies 36295 | -2/Research | Garrison activated, responded to threat 36322 | -2/Research | Spotted B-90 Cyclops 36348 | -2/Research | Allies destroyed B-90 Cyclops 36374 | -2/Research | Lost 3 allies 36613 | -2/Research | Found Exp. Signal Interpreter 36740 | -2/Research | Lost 3 allies 36882 | -2/Research | Discovered new exit (range 31) 37198 | -2/Research | Lost 4 allies 37209 | -2/Research | Identified exit to Quarantine 37335 | -2/Research | Entered Quarantine 37335 | -2/Quarantine | Accompanied by 6 allies 37493 | -2/Quarantine | Discovered new exit (range 26) 37650 | -2/Quarantine | Lost 3 allies 37695 | -2/Quarantine | P-80 Master assimilated allied Expert 9a 37902 | -2/Quarantine | Found Alien Artifact 37988 | -2/Quarantine | Cryocooling Duct disabled 38003 | -2/Quarantine | Ambient heat levels rising (+20) 38003 | -2/Quarantine | Non-combat units ordered to evacuate 38232 | -2/Quarantine | Found Alien Energy Cannon 38312 | -2/Quarantine | Spotted Fortress 38319 | -2/Quarantine | Assimilated Fortress with formatsys_high 38422 | -2/Quarantine | Discovered new exit (range 6) 38422 | -2/Quarantine | Discovered new exit (range 6) 38460 | -2/Quarantine | Entered Protoforge 38460 | -2/Protoforge | Accompanied by 1 ally 38510 | -2/Protoforge | Superfortress began startup sequence 38616 | -2/Protoforge | Discovered new exit (range 28) 38635 | -2/Protoforge | Spotted Hotshot 38635 | -2/Protoforge | Spotted Hotshot 38635 | -2/Protoforge | Spotted Hotshot 38639 | -2/Protoforge | Spotted Hotshot 38662 | -2/Protoforge | Destroyed Hotshot 38671 | -2/Protoforge | Destroyed Hotshot 38683 | -2/Protoforge | Destroyed Hotshot 38686 | -2/Protoforge | Destroyed Hotshot 38755 | -2/Protoforge | Spotted Overlord 39154 | -2/Protoforge | Spotted B-90 Cyclops 39175 | -2/Protoforge | Spotted Hotshot 39180 | -2/Protoforge | Spotted Hotshot 39183 | -2/Protoforge | Assimilated Cyclops 9a with formatsys_high 39214 | -2/Protoforge | System corruption reached 10% 39252 | -2/Protoforge | Found Quantum Capacitor 39349 | -2/Protoforge | Assimilated Overlord with formatsys_high 39428 | -2/Protoforge | Identified Core Cannon 39435 | -2/Protoforge | Additional patrols dispatched to research labs 39697 | -2/Protoforge | Spotted Immortal 39700 | -2/Protoforge | Spotted Immortal 39701 | -2/Protoforge | Autoassimilated Immortal with RIF 39702 | -2/Protoforge | Spotted Immortal 39702 | -2/Protoforge | Allies destroyed Immortal 39886 | -2/Protoforge | Found Prototype Device 40045 | -2/Protoforge | Spotted Immortal 40045 | -2/Protoforge | Spotted Immortal 40090 | -2/Protoforge | Spotted Decapitator 40090 | -2/Protoforge | Spotted Decapitator 40090 | -2/Protoforge | Spotted Decapitator 40090 | -2/Protoforge | Spotted Decapitator 40091 | -2/Protoforge | Autoassimilated Decapitator with RIF 40119 | -2/Protoforge | Destroyed Decapitator 40132 | -2/Protoforge | Allies destroyed Decapitator 40144 | -2/Protoforge | Allies destroyed Decapitator 40158 | -2/Protoforge | Destroyed Immortal 40167 | -2/Protoforge | Destroyed Immortal 40199 | -2/Protoforge | Forge Plexus network access discovered 40222 | -2/Protoforge | Identified Subatomic Replicator 40222 | -2/Protoforge | Identified Crosscalibrator 40401 | -2/Protoforge | Found Exp. Force Field 40423 | -2/Protoforge | Found Faulty Cep. Energy Mantle 40432 | -2/Protoforge | Found Faulty Cep. Energy Mantle 40469 | -2/Protoforge | Found Cep. Projectile Intercept Suite 40594 | -2/Protoforge | Found Cep. Antigrav Storage Unit 40616 | -2/Protoforge | Spotted V521-u 40616 | -2/Protoforge | Spotted V641-y 40616 | -2/Protoforge | Spotted V835-v 40616 | -2/Protoforge | Spotted V745-g 40624 | -2/Protoforge | Destroyed V521-u 40635 | -2/Protoforge | Allies destroyed V835-v 40649 | -2/Protoforge | Destroyed V641-y 40658 | -2/Protoforge | Allies destroyed V745-g 40887 | -2/Protoforge | Spotted Decapitator 40888 | -2/Protoforge | Autoassimilated Decapitator with RIF 40889 | -2/Protoforge | Spotted Decapitator 40889 | -2/Protoforge | Spotted Decapitator 40889 | -2/Protoforge | Spotted V635-r 40891 | -2/Protoforge | Spotted V691-c 40923 | -2/Protoforge | Allies destroyed V691-c 40936 | -2/Protoforge | Allies destroyed V635-r 40945 | -2/Protoforge | Lost 3 allies 40966 | -2/Protoforge | Lost 6 parts (1p3n2u) 40983 | -2/Protoforge | Found Cep. Network Penetrator 40994 | -2/Protoforge | Found Cep. Network Penetrator 41020 | -2/Protoforge | Garrison activated, responded to threat 41079 | -2/Protoforge | Crushed by falling debris 41137 | -2/Protoforge | Spotted V260-z 41137 | -2/Protoforge | Spotted V659-b 41148 | -2/Protoforge | Spotted V472-z 41152 | -2/Protoforge | Destroyed V472-z 41152 | -2/Protoforge | Spotted V425-x 41171 | -2/Protoforge | Core integrity fell below 50% 41177 | -2/Protoforge | System corruption reached 30% 41193 | -2/Protoforge | Lost 3 allies 41195 | -2/Protoforge | Released all parts (9) 41224 | -2/Protoforge | Lost 6 parts (1p3u2w) 41305 | -2/Protoforge | Found Cep. Biometal Exoskeleton 41458 | -2/Protoforge | Crushed by falling debris 41489 | -2/Protoforge | Build established: Mutant 41505 | -2/Protoforge | Spotted Decapitator 41505 | -2/Protoforge | Spotted Decapitator 41505 | -2/Protoforge | Spotted Decapitator 41600 | -2/Protoforge | Identified exit to Garrison 41620 | -2/Protoforge | Found Cep. NT7 Matterbank 41622 | -2/Protoforge | Found Corrupted Cep. Chromion Battery 41627 | -2/Protoforge | Found Corrupted Cep. Antigrav Storage Unit 41653 | -2/Protoforge | Entered Garrison 41653 | -2/Garrison | Accompanied by 1 ally 41660 | -2/Garrison | Discovered new exit (range 76) 41660 | -2/Garrison | Discovered new exit (range 36) 41660 | -2/Garrison | Discovered new exit (range 70) 41711 | -2/Garrison | Triggered checkpoint 41760 | -2/Garrison | Triggered checkpoint 41794 | -2/Garrison | Spotted B-90 Cyclops 41797 | -2/Garrison | Core integrity fell below 20% 41802 | -2/Garrison | Triggered checkpoint 41820 | -2/Garrison | Garrison Relay disabled 41835 | -2/Garrison | Lost 7 allies 41858 | -2/Garrison | Triggered checkpoint 41890 | -2/Garrison | Garrison Relay disabled 41909 | -2/Garrison | Lost 6 allies 41918 | -2/Garrison | Triggered checkpoint 42067 | -2/Garrison | Expanded RIF knowledge: Autoassimilate 42079 | -2/Garrison | Triggered checkpoint 42089 | -2/Garrison | Garrison Relay disabled 42155 | -2/Garrison | Build established: Botlord-Mutant 42192 | -2/Garrison | Garrison Relay disabled 42266 | -2/Garrison | Allies destroyed B-90 Cyclops 42293 | -2/Garrison | Lost 4 allies 42383 | -2/Garrison | Spotted B-90 Cyclops 42563 | -2/Garrison | Triggered checkpoint 42575 | -2/Garrison | Garrison Relay disabled 42602 | -2/Garrison | Discovered new exit (range 36) 42602 | -2/Garrison | Discovered new exit (range 53) 42602 | -2/Garrison | Discovered new exit (range 12) 42665 | -2/Garrison | Entered Access 42665 | -1/Access | Evolved 2 slots: Power x1, Propulsion x1 42777 | -1/Access | Identified exit to Surface 42845 | -1/Access | Spotted B-99 Colossus 43289 | -1/Access | Found System Purifier 43749 | -1/Access | Lost 4 allies 43813 | -1/Access | Identified exit to Command 43892 | -1/Access | System corruption reached 10% 43915 | -1/Access | Lost 6 allies 44177 | -1/Access | Found Exp. Core Analyzer 44190 | -1/Access | Found Spectral Analyzer 44229 | *** | Escaped! Last Messages --------------- Dumping inventory... 5x Exp. Thermal Defense Suite 2x Hvy. Dispersion Rifle 2x Spectral Analyzer 44189_ Discarded Relay Coupler [C]. 44190_ Acquired Spectral Analyzer. 44191_ Slug penetrates Enforcer 10h. 44195_ System Purifier purges 1% system corruption (5%). 44195_ System Purifier expended. 44197_ Connecting with Terminal... >>Open(Door) Sealed Barrier opened. 44202_ The Access Shell folds into the floor. 44203_ >> Watcher Feeds: Established visual feed link with W-44 Eye. 44214_ >> Watcher Feeds: Feed link from W-44 Eye lost. 44215_ System corrupted: Substantial component data lost. 44215_ >> Watcher Feeds: Established visual feed link with W-44 Eye. 44227_ >> Watcher Feeds: Feed link from W-44 Eye lost. 44227_ >> Watcher Feeds: Established visual feed link with W-44 Eye. 44228_ >> Watcher Feeds: Feed link from W-44 Eye lost. Map ----- +----------------------------------------------------+ | ??????????????????### #???# #????????? | | ????????###########"" #???# #????????? | | ????????# ##"" #???# #????????? | | ????????# ##"" #???# #????????? | | ????????# ##S #???# #????????? | | ????????# ##"" #???# ########## | | ????????# ##"" #???# # | | ????????# ##"" #???#Y # | | ????????# #### #???# # | | ????????# #??# = #???# # | | ????????# #??# #???# # " | | #############+#############+########## # """" | | p k k # """"" | | w k A # """" | | ######+############################### # """" | | #???????????????????????????# + " | | #???????????????????????????# # | | ] #???????????????????????????# # | | #???????????????????????????# ########## | | #???????????????????###?????# #????????? | | "" """ #??????????########## ####### #????????? | | ""F""" #??????????" #????????? | | """"" #??????????" #????????? | | ########## ??????" g #????????? | | ??????" #????????? | | ??????" "@ #????????? | | ??????" ""w R #????????? | | ??????" !![#????????? | | ##"####### ??????" !!!#????????? | | ? #???????????????" """ """![#????????? | | ????????????????" """T""" #????????? | | #???????????????########## ####### #????????? | | #????????????????????????###?????# #????????? | | #????????????????????????????????# #????????? | | #????????????????????????????????# #????????? | | #????????????????????????????????# #????????? | | #????????????????????????????????# #????????? | | #####????????????????????????????????# #????????? | | ????????????????????????????????????? #????????? | | ????????????????????????????????????? #????????? | | ?????????????????????????????????????####????????? | | ?????????????????????????????????????????????????? | | ?????????????????????????????????????????????????? | | ?????????????????????????????????????????????????? | | ?????????????????????????????????????????????????? | | ?????????????????????????????????????????????????? | | ?????????????????????????????????????????????????? | | ?????????????????????????????????????????????????? | | ?????????????????????????????????????????????????? | | ?????????????????????????????????????????????????? | +----------------------------------------------------+ Best States ------------- Heat Dissipation 139 Coolant Potential 65 Energy Generation 79 Energy Capacity 1190 Matter Stores 300 Matter Capacity 300 Sight Range 24 Terrain Scan Density 10 Power Amplification 40 Additional Mass Support 20 Base Temperature (-) 150 Armor Coverage 1650 Resistance: TH 30 Resistance: EM 15 Weapon Cycling 20 Phase Shifting 15 Evasion (%) 59 Targeting Accuracy 12 Launcher Accuracy 40 Core Analysis 8 Recoil Reduction 7 Offensive Hacking 50 Defensive Hacking 10 Relay Coupler Types 9 Relay Coupler Value 247 Authchip Count 1 Item Schematics ----------------- Lgt. Antimatter Reactor | -8/Materials | Scanalyzed Huge Storage Unit | -6/Factory | Hacked Exp. Cooling System | -2/Quarantine | Archive Exp. Power Amplifier | -2/Quarantine | Archive Centrium Heavy Armor Plating | -2/Protoforge | Archive Adv. Variable Charge Gun | -2/Protoforge | Archive Cld. Field Propulsion Drive | -2/Protoforge | Archive Proton Burst Cannon | -2/Protoforge | Archive Robot Schematics ------------------ M-13 Machinist | -10/Materials | Hacked M-28 Smith | -8/Materials | Hacked A-15 Conveyor | -2/Quarantine | Archive B-74 Champion | -2/Protoforge | Archive Fabricated ------------ Lgt. Antimatter Reactor | x2 | -7/Factory Huge Storage Unit | x1 | -6/Factory Repaired ---------- Med. Armor Plating | 31% | -9/Materials Hvy. EM Shotgun | 65% | -9/Materials Lgt. Antimatter Reactor | 67% | -8/Materials Gatling Laser | 76% | -8/Materials Cooling System | 62% | -8/Materials Gatling Laser | 49% | -8/Materials Lyr. Heavy Armor Plating | 50% | -5/Factory Alien Tech Used ----------------- Core Cannon Achievements -------------- None Challenges ------------ None Game ------ Seed HeartStasisBarrier Manual? 0 Play Time 05:28:29 Cumulative 736.7 hours Start 2025.09.04 @ 18:01:41 End 2025.09.07 @ 07:46:37 Sessions 25 Manual Loads 0 Difficulty Rogue Special Mode None Game No. 381 Rogue 381 Adventurer 0 Explorer 0 Win Type 0 Total 59 Types 40/4/5/2/1/1/3/1/1/1 Lore% 92 Gallery% 86 Achievement% 91 Wizard Run 0 Options --------- Layout 0 ASCII 0 Keyboard 1 Movement Numpad Keybinds 0 Fullscreen 2 Font 18/SmallcapsGlow Map View 76x50 Zoom Use 0% Tactical HUD 1 Map Filters NONE Filters NONE Steam 1 RUN: b10df59c-7a89-4ae1-8bc0-954fb4d65948